Workbook

Sheet COVERC PAGE
B2: HOUSING DEVELOPMENT AGENCY
C15: DRAFT
C16: SCHEDULE OF QUANTITIES
C17: CONTRACT NO:
B19: BURGERSFORD EXT 71,72,54 &58: CONSTRUCTION OF SEWER PUMPSTATION AND BULK SEWERLINE
C21: ENGINEERS ESTIMATES
C23: 2023-09-22
C26: Prepared by
C28: AM Consuting Engineers (AMCE)

Sheet SUMMARY
B2: 1st DRAFT - BURGERSFORT PUMP STATION AND BULK SEWERLINE
B3: Section | C3: Description | E3: Amount (Rand)
B4: 1 | C4: SCHEDULE 1: GENERAL - SEWER PUMPSTATION AND BULKLINE
B6: 2 | C6: SCHEDULE 2: GENERAL - DAYWORKS & PROVISIONAL SUMS
B8: 3 | C8: SCHEDULE 3: SITE CLEARANCE
B10: 4 | C10: SCHEDULE 4: EARTHWORKS
B12: 5 | C12: SCHEDULE 5: PIPE TRENCHES
B14: 6 | C14: SCHEDULE 6: PUMP STATION STRUCTURES
B16: 7 | C16: SCHEDULE 7: CHAMBERS
B18: 8 | C18: SCHEDULE 8: SEWERS
B20: 9 | C20: SCHEDULE 9: MEDIUM PRESSURE PIPES
B22: 10 | C22: SCHEDULE 10: STRUCTURAL STEEL
B24: 11 | C24: SCHEDULE 11: GUARDHOUSE
B26: 12 | C26: SCHEDULE 12: ACCESS ROAD
B28: 13 | C28: SCHEDULE 13: FENCING
B30: 14 | C30: SCHEDULE 14: MECHANICAL WORKS
B32: 15 | C32: SCHEDULE 15: ELECTRICAL WORKS
C35: SUBTOTAL
B37: 21 | C37: Add 10% Contingencies
C39: SUBTOTAL
B41: 22 | C41: Escalations
B43: 23 | C43: SUBTOTAL
B45: 24 | C45: Less 10% Retention
B47: 25 | C47: SUBTOTAL
B49: 28 | C49: Add 15% VAT
B51: Total Carried Forward To Summary Of Schedules

Sheet 1_GENERAL
A2: CONTRACT NO:
A3: SCHEDULE 1: GENERAL
A4: ITEM NO | B4: PAYMENT | C4: DESCRIPTION | D4: UNIT | E4: QTY | F4: RATE | G4: AMOUNT
B5: SANS 1200A | C5: SCHEDULE 1: GENERAL
B7: 8.3 | C7: SCHEDULED FIXED-CHARGE AND VALUE RELATED ITEMS
A9: 1.01 | B9: 8.3.1 | C9: Contractual Requirements | D9: Sum | E9: 1 | G9: =F9*E9 -> 0
B11: 8.3.2 | C11: Establishment of Facilities on the Site:
B13: 8.3.2.1 | C13: Facilities for Engineer (SANS 1200 AB)
A15: 1.02 | B15: PSA 8.3.2.1(a) | C15: Engineers Office | D15: Sum | E15: 1 | G15: =F15*E15 -> 0
A17: 1.03 | B17: PSA 8.3.2.1(b) | C17: Communication costs (cellular phone) | D17: Sum | E17: 1 | G17: =F17*E17 -> 0
A19: 1.04 | B19: PSA 8.3.2.1 c) | C19: Nameboards (2 No.) | D19: Sum | E19: 1 | G19: =F19*E19 -> 0
A21: 1.05 | B21: PSA 8.3.2.1(d) | C21: Computer facilities complete with printer, modem with 4G connection | D21: Sum | E21: 1 | G21: =F21*E21 -> 0
A23: 1.06 | B23: PSA 8.3.2.1 e) | C23: Provision of survey equipment | D23: Sum | E23: 1 | G23: =F23*E23 -> 0
B25: 8.3.2.2 | C25: Facilities for Contractor
A27: 1.07 | B27: 8.3.2.2(a) | C27: Offices and storage sheds | D27: Sum | E27: 1 | G27: =F27*E27 -> 0
A29: 1.08 | B29: 8.3.2.2(b) | C29: Workshops | D29: Sum | E29: 1 | G29: =F29*E29 -> 0
A31: 1.09 | B31: 8.3.2.2(c) | C31: Laboratories | D31: Sum | E31: 1 | G31: =F31*E31 -> 0
A33: 1.10 | B33: 8.3.2.2(e) | C33: Ablution and latrine facilities | D33: Sum | E33: 1 | G33: =F33*E33 -> 0
A35: 1.11 | B35: 8.3.2.2(f) | C35: Tools and equipment | D35: Sum | E35: 1 | G35: =F35*E35 -> 0
A37: 1.12 | B37: PSA 8.3.2.2(g) | C37: Water supplies, electric power and communications | D37: Sum | E37: 1 | G37: =F37*E37 -> 0
A39: 1.13 | B39: 8.3.2.2(h) | C39: Dealing with water (Sub-clause 5.5) | D39: Sum | E39: 1 | G39: =F39*E39 -> 0
A41: 1.14 | B41: 8.3.2.2(i) | C41: Access (Sub-clause 5.8) | D41: Sum | E41: 1 | G41: =F41*E41 -> 0
A43: 1.15 | B43: 8.3.2.2.(j) | C43: Plant. | D43: Sum | E43: 1 | G43: =F43*E43 -> 0
A45: 1.16 | B45: 8.3.3 | C45: Other fixed-charge obligations | D45: Sum | E45: 1 | G45: =F45*E45 -> 0
A47: 1.17 | B47: 8.3.4 | C47: Removal of Site establishment | D47: Sum | E47: 1 | G47: =F47*E47 -> 0
A49: 1.18 | B49: PSA 8.3.5.1 | C49: Issuing of notices to consumers | D49: Sum | E49: 1 | G49: =F49*E49 -> 0
A51: Total Carried Forward | G51: =SUM(G5:G50) -> 0
A52: Total Brought Forward | G52: =G51 -> 0
B53: PSA 8.3.3.2 | C53: OHS Act Obligations:
A55: 1.19 | C55: i) General Safety obligations (incl. provision of personal protective equipment) | D55: Sum | E55: 1 | G55: =F55*E55 -> 0
A57: 1.20 | C57: ii) Health and Safety plan/file including health and safety training. | D57: Sum | E57: 1 | G57: =F57*E57 -> 0
A59: 1.21 | C59: iii) Fulfil legislated and/or specified requirements for blasting (incl. submission of plans). | D59: Sum | E59: 1 | G59: =F59*E59 -> 0
A61: 1.22 | B61: PSA 8.3.5.3 | C61: Environmental Management Plan Obligations | D61: Sum | E61: 1 | G61: =F61*E61 -> 0
B63: 8.4 | C63: SCHEDULED TIME-RELATED ITEMS
A65: 1.23 | B65: PSA 8.2.1.2 | C65: Contractual Requirements. | D65: Month | E65: 12 | G65: =F65*E65 -> 0
A67: 1.24 | B67: 8.4.2 | C67: Operate and maintain facilities on the Site for duration of Construction: | D67: Month | E67: 12 | G67: =F67*E67 -> 0
B69: PSA 8.4.2.1 | C69: Facilities for the Employer's Agent:
A71: 1.25 | B71: 8.4.2.1.a) | C71: Engineers Office | D71: Month | E71: 12 | G71: =F71*E71 -> 0
A73: 1.26 | B73: 8.4.2.1.b) | C73: Provision of name board | D73: Month | E73: 12 | G73: =F73*E73 -> 0
A75: 1.27 | B75: 8.4.2.1.c) | C75: Provision of cellular phone | D75: Month | E75: 12 | G75: =F75*E75 -> 0
A77: 1.28 | B77: 8.4.2.1.d) | C77: Provision of survey equipment | D77: Month | E77: 12 | G77: =F77*E77 -> 0
A79: 1.29 | B79: 8.4.2.2 | C79: Facilities for Contractor:
A81: 1.30 | B81: 8.4.2.2(a) | C81: Offices and storage sheds | D81: Month | E81: 12 | G81: =F81*E81 -> 0
A83: 1.31 | B83: 8.4.2.2(b) | C83: Workshops | D83: Month | E83: 12 | G83: =F83*E83 -> 0
A85: 1.32 | B85: 8.4.2.2(c) | C85: Laboratories | D85: Month | E85: 12 | G85: =F85*E85 -> 0
A87: 1.33 | B87: 8.4.2.2(e) | C87: Ablution and latrine facilities | D87: Month | E87: 12 | G87: =F87*E87 -> 0
A89: 1.34 | B89: 8.4.2.2(f) | C89: Tools and equipment | D89: Month | E89: 12 | G89: =F89*E89 -> 0
A91: 1.35 | B91: PSA 8.4.2.2.(g) | C91: Water supplies, electric power and communications | D91: Month | E91: 12 | G91: =F91*E91 -> 0
A93: 1.36 | B93: 8.4.2.2(h) | C93: Dealing with water (Sub-clause 5.5) | D93: Month | E93: 12 | G93: =F93*E93 -> 0
A94: Total Carried Forward | G94: =SUM(G52:G93) -> 0
A95: Total Brought Forward | G95: =G94 -> 0
A97: 1.37 | B97: 8.4.2.2(i) | C97: Access (Sub-clause 5.8) | D97: Month | E97: 12 | G97: =F97*E97 -> 0
A99: 1.38 | B99: 8.4.3 | C99: Supervision for the Duration of Construction | D99: Month | E99: 12 | G99: =F99*E99 -> 0
A101: 1.39 | B101: 8.4.4 | C101: Company and Head Office Overhead Costs for Duration of Contract | D101: Month | E101: 12 | G101: =F101*E101 -> 0
A103: 1.40 | B103: 8.4.5 | C103: Other Time-related Obligations | D103: Month | E103: 12 | G103: =F103*E103 -> 0
B105: PSA 8.4.6.1 | C105: OHS Act Obligations
A107: 1.41 | C107: i) General Safety obligations | D107: Month | E107: 12 | G107: =F107*E107 -> 0
A109: 1.42 | C109: ii) Health and Safety plan/file | D109: Month | E109: 12 | G109: =F109*E109 -> 0
A111: 1.43 | C111: (iii) Safety Officer | D111: Month | E111: 12 | G111: =F111*E111 -> 0
A113: 1.44 | B113: PSA 8.4.6.2 | C113: Security Services | D113: Month | E113: 12 | G113: =F113*E113 -> 0
A115: 1.45 | B115: PSA 8.4.6.4 | C115: EMP Obligations | D115: Month | E115: 12 | G115: =F115*E115 -> 0
A144: Total Carried to Summary | G144: =SUM(G95:G143) -> 0

Sheet 2_GENERAL PROV. & DAY
A2: CONTRACT NO:
A3: SCHEDULE 2: GENERAL - DAYWORKS & PROVISIONAL SUMS
A4: ITEM NO | B4: PAYMENT | C4: DESCRIPTION | D4: UNIT | E4: QTY | F4: RATE | G4: AMOUNT
B5: 8.5 | C5: SUMS STATED PROVISIONALLY BY ENGINEER
A7: 2.01 | C7: a) Safeguarding of excavations as required by the Engineer | D7: Prov Sum | E7: 1 | G7: =E7*F7 -> R0.00
A9: 2.02 | C9: a)(i). Overheads, charges and profit on item 2.01 above | D9: % | E9: =F7 -> 0 | G9: =E9*F9 -> R0.00
A11: 2.03 | C11: b)Additional Control tests by independent laboratory | D11: Prov Sum | E11: 1 | G11: =E11*F11 -> R0.00
A13: 2.04 | C13: b)(i) Overheads, charges and profit on item 2.03 above | D13: % | E13: =F11 -> 0 | G13: =E13*F13 -> R0.00
A15: 2.05 | C15: c) Relocation of existing services (water mains, electricity cables/poles, etc.) by Services utility | D15: Prov Sum | E15: 1 | G15: =E15*F15 -> R0.00
A17: 2.06 | C17: c)(i) Overheads, charges and profit on item 2.05 above | D17: % | E17: =F15 -> 0 | G17: =E17*F17 -> R0.00
A19: 2.07 | C19: d) Additional surveys and underground service detection by nominated specialist as ordered by Engineer | D19: Prov Sum | E19: 1 | G19: =E19*F19 -> R0.00
A21: 2.08 | C21: d)(i) Overheads, charges and profit on item 2.07 above | D21: % | E21: =F19 -> 0 | G21: =E21*F21 -> R0.00
A23: 2.09 | C23: e) Provision for training of targeted labourers | D23: Prov Sum | E23: 1 | G23: =E23*F23 -> R0.00
A25: 2.10 | C25: e)(i) Overheads, charges and profit on item 2.09 above | D25: % | E25: =F23 -> 0 | G25: =E25*F25 -> R0.00
A27: 2.11 | C27: f)Safeguarding of excavations as required by the Engineer | D27: Prov Sum | E27: 1 | G27: =E27*F27 -> R0.00
A29: 2.12 | C29: f)(i) Overhead, charges and profit on item 2.11 above | D29: % | E29: =F27 -> 0 | G29: =E29*F29 -> R0.00
A31: 2.13 | C31: g) Appoint a Community Liaison Officer from the community for the duration of the contract | D31: Prov Sum | E31: 1 | G31: =E31*F31 -> R0.00
A33: 2.14 | C33: g)(i) Overheads, charges and profit on item 2.13 | D33: % | E33: =F31 -> 0 | G33: =E33*F33 -> R0.00
A35: 2.15 | C35: h)Tri-gonometrical survey beacons, bench marks and plot boundary pegs, -locate and record and expose on completion of Works | D35: Prov. Sum | E35: 1 | G35: =E35*F35 -> R0.00
A37: 2.16 | C37: h)(i)Contractors mark-up on Item 2.15 above | D37: % | E37: =F35 -> 0.00 | G37: =E37*F37 -> R0.00
A39: Total Carried Forward | G39: =SUM(G5:G38) -> R0.00
A41: Total Brought Forward | G41: =G39 -> R0.00
A42: 2.17 | C42: i)Tri-gonometrical survey beacons and plot boundary pegs, -protect and re-establish located under item 2.15, above, as ordered, by a Registered Land Surveyor on completion of the Works | D42: Prov. Sum | E42: 1 | G42: =E42*F42 -> R0.00
A44: 2.18 | C44: i)(i)Contractors mark-up on Item 2.17 above | D44: % | E44: =F42 -> 0 | G44: =E44*F44 -> R0.00
A46: 2.19 | C46: j)Provisional sum for cost of material | D46: Prov. Sum | E46: 1 | G46: =E46*F46 -> R0.00
A48: 2.20 | C48: j)i)Contractors mark-up on Item 2.19 above | D48: % | E48: =F46 -> 0 | G48: =E48*F48 -> R0.00
B50: 8.7 | C50: DAYWORKS
A52: 2.21 | C52: Unskilled Labour | D52: hours | E52: 322 | G52: =E52*F52 -> R0.00
A54: 2.22 | C54: Semi-skilled Labour | D54: hours | E54: 38 | G54: =E54*F54 -> R0.00
A56: 2.23 | C56: Construction-hand | D56: hours | E56: 32 | G56: =E56*F56 -> R0.00
A58: 2.24 | C58: Carpenter | D58: hours | E58: 38 | G58: =E58*F58 -> R0.00
A60: 2.25 | C60: Driver (LDV, machines, trucks, etc.) | D60: hours | E60: 32 | G60: =E60*F60 -> R0.00
A62: 2.26 | C62: Artisan | D62: hours | E62: 38 | G62: =E62*F62 -> R0.00
A64: 2.27 | C64: Foreman | D64: hours | E64: 50 | G64: =E64*F64 -> R0.00
A66: 2.28 | C66: Gangers and section leaders | D66: hours | E66: 26 | G66: =E66*F66 -> R0.00
A68: 2.29 | C68: Bricklayer or plasterer | D68: hours | E68: 32 | G68: =E68*F68 -> R0.00
A70: 2.30 | C70: Welder | D70: hours | E70: 16 | G70: =E70*F70 -> R0.00
B72: 8.7 | C72: PLANT
C74: Tenderers to insert the hire rate at which each item will be charged that will cover all relevant costs of plant hire, including operating crew
A76: 2.31 | C76: Lowbed transport of plant to and from site | D76: km | E76: 16 | G76: =E76*F76 -> R0.00
A78: 2.32 | C78: Excavator (medium), between 93kW & 200kW | D78: hours | E78: 26 | G78: =E78*F78 -> R0.00
A80: 2.33 | C80: Tractor loader backhoe (TLB) | D80: hours | E80: 26 | G80: =E80*F80 -> R0.00
A82: 2.34 | C82: Front end wheel loaders (2 cub or larger) | D82: hours | E82: 26 | G82: =E82*F82 -> R0.00
A83: Total Carried Forward | G83: =SUM(G41:G82) -> R0.00
A85: Total Brought Forward | G85: =G83 -> R0.00
A86: 2.35 | C86: Generator 5Kw | D86: hours | E86: 26 | G86: =E86*F86 -> R0.00
A88: 2.36 | C88: Trucks (6 cub or larger) | D88: hours | E88: 26 | G88: =E88*F88 -> R0.00
A90: 2.37 | C90: Tip trucks (10 Cub or larger) | D90: hours | E90: 26 | G90: =E90*F90 -> R0.00
A92: 2.38 | C92: Water pump 100mm diameter | D92: hours | E92: 32 | G92: =E92*F92 -> R0.00
A94: 2.39 | C94: Plate compactor | D94: hours | E94: 26 | G94: =E94*F94 -> R0.00
A96: 2.40 | C96: Light delivery vehicles (1ton or equivalent) | D96: km | E96: 32 | G96: =E96*F96 -> R0.00
A98: 2.41 | C98: Sewer pump 100mm diameter | D98: hours | E98: 32 | G98: =E98*F98 -> R0.00
B100: 8.8 | C100: TEMPORARY WORKS
A102: 2.42 | B102: 8.8.1 | C102: Contractors Access Road to Works | D102: Sum | E102: 1 | G102: =E102*F102 -> R0.00
A104: 2.43 | B104: 8.8.2 | C104: Dealing with Traffic | D104: Sum | E104: 1 | G104: =E104*F104 -> R0.00
B106: 8.8.4 | C106: Existing Services
A108: 2.44 | B108: 8.8.4(a) | C108: Supply (or hire) and use of specialist equipment for the detection of a particular service (electrical) on request of the Employer’s Agent | D108: Sum | E108: 1 | G108: =E108*F108 -> R0.00
A110: 2.45 | B110: 8.8.4(b) | C110: The use of equipment for detection referred to in item 1.89 above | D110: Day | E110: 1 | G110: =E110*F110 -> R0.00
A112: 2.46 | B112: 8.8.4(c) | C112: Excavation and backfill by hand in soft material to expose service | D112: m³ | E112: 300 | G112: =E112*F112 -> R0.00
B114: PSA8.8.7 | C114: Provision of PVC sleeves for protection of existing services (as instructed by Employer’s agent):
C116: (a) Split PVC pipes sleeves, for diameter:
A118: 2.47 | C118: (i) 200 mm Ø | D118: m | E118: 100 | G118: =E118*F118 -> R0.00
A120: 2.48 | C120: (ii) 250 mm Ø | D120: m | E120: 100 | G120: =E120*F120 -> R0.00
A122: 2.49 | B122: PSA8.8.8 | C122: Survey of existing services | D122: Sum | E122: 1 | G122: =E122*F122 -> R0.00
A124: 2.50 | B124: PSA8.8.9 | C124: Liaison with service providers, landusers, land owners regarding shutdowns & connections | D124: Sum | E124: 1 | G124: =E124*F124 -> R0.00
A126: 2.51 | B126: PSA8.8.10 | C126: Provision of record/as-build drawings | D126: Sum | E126: 1 | G126: =E126*F126 -> R0.00
A129: Total Carried Forward To Summary | G129: =SUM(G85:G128) -> R0.00

Sheet 3_SITE CLEARANCE
A2: CONTRACT NO:
A3: SCHEDULE 3: SITE CLEARANCE (PUMPSTATION
A4: Item No | B4: Payment | C4: Description | D4: Unit | E4: Qty | F4: Rate | G4: Amount (Rand)
A5: 3. | B5: SANS 1200 C | C5: SCHEDULE 3 : SITE CLEARANCE
A7: 3.1 | C7: CLEAR SITE
A9: 3.1.1 | B9: 8.2.1 | C9: Clear and grub Site | D9: m² | E9: =(2255) -> 2,255.0 | G9: =E9*F9 -> 0.00
B11: 8.2.2 | C11: Remove and grub large trees and tree stumps of girth
A13: 3.1.2 | C13: a) over 1 m and up to 2 m | D13: No. | G13: =E13*F13 -> 0.00
A15: 3.1.3 | C15: b) over 2 m and up to 3 m | D15: No. | G15: =E15*F15 -> 0.00
A17: 3.1.4 | B17: 8.2.4 | C17: Re-clear surfaces (provisional) (where ordered by Engineer) | D17: ha | E17: 1.0 | G17: =E17*F17 -> 0.00
A19: 3.1.5 | B19: 8.2.5 | C19: Take down existing fences | D19: m | E19: 100.0 | G19: =E19*F19 -> 0.00
A21: 3.1.6 | B21: 8.2.6 | C21: Clear hedge and, where not scheduled separately, fence | D21: m | E21: 100.0 | G21: =E21*F21 -> 0.00
A23: 3.1.7 | B23: 8.2.7 | C23: Dismantle and remove pipelines (not encased in concrete), electricity transmission lines, cables, etc. | D23: m | E23: 50.0 | G23: =E23*F23 -> 0.00
A25: 3.1.8 | B25: 8.2.7 | C25: Dismantle and remove pipelines encased in concrete | D25: m | E25: 50.0 | G25: =E25*F25 -> 0.00
C27: Demolish and remove structures/buildings
A29: 3.1.9 | C29: Manholes | D29: No | E29: 20.0 | G29: =E29*F29 -> 0.00
A31: 3.1.10 | C31: Concrete structures | D31: m3 | E31: 50.0 | G31: =E31*F31 -> 0.00
A65: Total Carried Forward To Summary | G65: =SUM(G5:G63) -> R0.00

Sheet 4_BULK EARTHWORKS
B2: CONTRACT NO:
B3: SCHEDULE 4: BULK EARTHWORKS
B4: Item No | C4: Payment | D4: Description | E4: Unit | F4: Qty | G4: Rate | H4: Amount (Rand)
A5: 1804 | B5: 4. | D5: SCHEDULE 5 : EARTHWORKS
A7: 1807 | B7: 4.1 | C7: SANS 1200 D | D7: EXCAVATION
A9: 1808 | B9: 4.1.1 | C9: 8.3.1.2 | D9: Remove topsoil to nominal depth 150mm, stockpile, and maintain | E9: m² | F9: =(2255+450)*0.15 -> 405.8 | H9: =G9*F9 -> 0.00
A11: 1819 | B11: 4.2 | C11: 8.3.4 | D11: IMPORT MATERIAL
A13: 1820 | B13: 4.2.1 | D13: To complete terraces : from borrow pits (G5 or equivalent) | E13: m³ | H13: =F13*G13 -> 0.00
A15: 1821 | B15: 4.2.2 | D15: To complete terraces : from commercial sources (G5 or equivalent) (Provisional) | E15: m³ | F15: 50.0 | H15: =G15*F15 -> 0.00
A17: 1822 | B17: 4.2.3 | D17: Deal with overburden | E17: m³ | F17: 50.0 | H17: =F17*G17 -> 0.00
A19: 1823 | B19: 4.2.4 | C19: 8.3.5 | D19: Extra excavation in all materials to provide working space for outside formwork | E19: m² | H19: =F19*G19 -> 0.00
A21: 1824 | B21: 4.3 | D21: FINISHINGS
A23: 1825 | B23: 4.3.1 | C23: 8.3.10 | D23: Topsoiling | E23: m² | F23: 500.0 | H23: =G23*F23 -> 0.00
A25: 1826 | B25: 4.3.2 | C25: 8.3.11 | D25: Grassing | E25: m² | F25: 500.0 | H25: =G25*F25 -> 0.00
B59: Total Carried Forward To Summary | H59: =SUM(H5:H58) -> R0.00

Sheet 5_PIPE TRENCHES_PUMPSTATION
B2: CONTRACT NO:
B3: SCHEDULE 5: PIPE TRENCHES
B4: Item No | C4: Payment | D4: Description | E4: Unit | F4: Qty | G4: Rate | H4: Amount (Rand)
A5: 345 | B5: 5. | D5: SCHEDULE 5: PIPE TRENCHES
A7: 4561 | B7: 5.1 | C7: SANS 1200 DB | D7: PIPE TRENCHES
A9: 4562 | B9: 5.2 | C9: 8.3.1 | D9: SITE CLEARANCE
A11: 4563 | B11: 5.2.1 | C11: 8.3.1 | D11: a) Site clearance | E11: m² | F11: =2444*1 -> 2,444.0 | H11: =F11*G11 -> 0.00
A13: 4564 | B13: 5.3 | C13: 8.3.2 | D13: EXCAVATION
A15: 4565 | C15: 8.3.2 | D15: a) Excavate in all materials for trenches, backfill, compact, and dispose of surplus/ unsuitable material, for pipes: 100 mm diam. to 700 mm for total trench depth:
A17: 4566 | B17: 5.3.1 | D17: Exceeding 0,0 m but not exceeding 1,0 m | E17: m | F17: 106.0 | H17: =F17*G17 -> 0.00
A19: 4567 | B19: 5.3.2 | D19: Exceeding 1,0 m but not exceeding 2,0 m | E19: m | F19: 650.0 | H19: =F19*G19 -> 0.00
A21: 4568 | B21: 5.3.3 | D21: Exceeding 2,0 m but not exceeding 3,0 m | E21: m | F21: 473.0 | H21: =F21*G21 -> 0.00
A23: 4569 | B23: 5.3.4 | D23: Exceeding 3,0 m but not exceeding 4,0 m | E23: m | F23: 93.0 | H23: =F23*G23 -> 0.00
A25: 4570 | B25: 5.3.5 | D25: Exceeding 4,0 m but not exceeding 5,0 m | E25: m | F25: 103.0 | H25: =F25*G25 -> 0.00
A27: 4577 | C27: 8.3.2 | D27: b) Extra-over items 8.3.1 to 8.3.5 included for (provisional):
A29: 4578 | B29: 5.3.6 | D29: Intermediate excavation | E29: m³ | F29: =(F17+F19+F21+F23+F25)*0.15 -> 213.8 | H29: =F29*G29 -> 0.00
A31: 4579 | B31: 5.3.7 | D31: Hard rock excavation | E31: m³ | F31: =F29 -> 213.8 | H31: =F31*G31 -> 0.00
A33: 4580 | B33: 5.3.8 | C33: 8.3.2 | D33: c) Excavate and dispose of unsuitable material from trench bottom (Provisional) | E33: m³ | F33: 10.0 | H33: =F33*G33 -> 0.00
A35: 4581 | B35: 5.4 | D35: EXCAVATION ANCILLARIES
A37: 4582 | D37: Make-up deficiency in backfill material (Provisional)
A39: 4583 | B39: 5.4.1 | C39: 8.3.3.1 | D39: a) from other necessary excavations on site | E39: m³ | H39: =F39*G39 -> 0.00
A41: 4584 | B41: 5.4.2 | C41: 8.3.3.3 | D41: Compaction in road reserves | E41: m³ | H41: =F41*G41 -> 0.00
A43: 4585 | C43: 8.3.4 | D43: a) Shore trench opposite structure or service
A45: 4586 | B45: 5.4.3 | D45: (i) opposite pump station | E45: m | H45: =F45*G45 -> 0.00
A49: 4587 | B49: 5.4.4 | D49: (ii) opposite existing pipe service where instructed by the Engineer | E49: m | H49: =F49*G49 -> 0.00
B50: Total Carried Forward | H50: =SUM(H5:H49) -> R0.00
B51: Total Brought Forward | H51: =H50 -> R0.00
A53: 4588 | B53: 5.5 | C53: 8.3.5 | D53: EXISTING SERVICES THAT INTERSECT OR A JOIN A PIPE TRENCH
A55: 4589 | C55: 8.3.5 | D55: a) Services that intersect a trench
A57: 4590 | B57: 5.5.1 | D57: 1) Cables | E57: No. | H57: =F57*G57 -> 0.00
A59: 4591 | B59: 5.5.2 | D59: 2) Water mains up to 600 mm diam. | E59: No. | H59: =F59*G59 -> 0.00
A61: 4592 | B61: 5.5.3 | D61: 3) Water mains over 600 mm diam. | E61: No. | H61: =F61*G61 -> 0.00
A62: 4593 | B62: 5.5.4 | D62: 4) Stormwater pipes up to 600 mm | E62: No. | H62: =F62*G62 -> 0.00
A63: 4594 | B63: 5.5.5
A64: 4594 | C64: 8.3.5 | D64: b) Services that adjoin a trench
A66: 4595 | B66: 5.5.5 | D66: 1) Cables | E66: m | H66: =F66*G66 -> 0.00
A68: 4596 | B68: 5.5.6 | D68: 2) Water mains up to 600 mm diam. | E68: m | H68: =F68*G68 -> 0.00
A70: 4597 | B70: 5.6 | C70: SABS 1200 LB | D70: BEDDING (PIPES)
A72: 4598 | D72: Provision of Bedding trench excavation within 0,5 km (Sub-clause 3.4.1)
A74: 4599 | B74: 5.6.1 | C74: 8.2.1 | D74: a) Selected granular material | E74: m³ | F74: =1*0.1*2440.31 -> 244.0 | H74: =F74*G74 -> 0.00
A76: 4600 | B76: 5.6.2 | C76: 8.2.1 | D76: b) Selected fill material | E76: m³ | F76: =1*2.6*2440.31 -> 6,344.8 | H76: =F76*G76 -> 0.00
A78: 4601 | D78: Supply only of Bedding by Importation
A80: 4602 | C80: 8.2.2.1 | D80: From other necessary excavations within 0,5 km (Provisional)
A82: 4603 | B82: 5.6.3 | D82: 1) Selected granular material | E82: m³ | H82: =F82*G82 -> 0.00
A84: 4604 | B84: 5.6.4 | D84: 2) Selected fill blanket | E84: m³ | H84: =F84*G84 -> 0.00
A86: 4605 | C86: 8.2.2.2 | D86: From borrow pits (Provisional)
A88: 4606 | B88: 5.6.5 | D88: 1) Selected granular material | E88: m³ | H88: =F88*G88 -> 0.00
A90: 4607 | B90: 5.6.6 | D90: 2) Selected fill material | E90: m³ | H90: =F90*G90 -> 0.00
A92: 4608 | C92: 8.2.2.3 | D92: From commercial sources (Provisional)
A94: 4609 | B94: 5.6.7 | D94: 1) Selected granular material | E94: m³ | F94: =1*0.1*2440.31 -> 244.0 | H94: =F94*G94 -> 0.00
A96: 4610 | B96: 5.6.8 | D96: 2) Selected fill material | E96: m³ | F96: =1*0.15*2440.31 -> 366.0 | H96: =F96*G96 -> 0.00
B109: Total Carried Forward To Summary | H109: =SUM(H51:H108) -> R0.00

Sheet 6_STRUCTURES_PUMPSTATION
A2: CONTRACT NO:
A3: SCHEDULE 6: PUMP STATION STRUCTURES
A4: ITEM NO | B4: PAYMENT REFERENCE | C4: Payment | D4: DESCRIPTION | E4: UNIT | F4: QTY | G4: RATE | H4: AMOUNT
A6: 6 | D6: SCHEDULE 6: PUMP STATION
A8: 6.1 | D8: PUMP STATION BUILDING: DRY WELL
D10: Bulk excavation
D12: Excavate in all materials and use for embankment or backfill or dispose as ordered, from
A13: 6.1.1 | D13: a) Necessary excavations | E13: m³ | F13: 430 | H13: =G13*F13 -> R 0.00
D15: Extra-over for:
A17: 6.1.1.1 | C17: 8.3.2 b) | D17: (a) Intermediate excavation | E17: m³ | F17: =F13*0.15 -> 64.5 | H17: =G17*F17 -> R 0.00
A18: 6.1.1.2 | C18: 8.3.2 b) | D18: (b) Hard rock excavation | E18: m³ | F18: =F17 -> 64.5 | H18: R 0.00
C21: SANS 1200 MFL | D21: BASE (LIGHT PAVEMENT STRUCTURES)
A23: 6.1.2 | C23: SANS 1200 MFL 8.3.1 | D23: Construct base with material from commercial sources
D25: a) Natural gravel (G4) | E25: m³ | F25: 25 | H25: =G25*F25 -> R 0.00
A27: 6.1.3 | C27: SANS 1200 MFL 8.3.3 | D27: Construct base with material from designated excavations:
C29: 8.3.3 b) | D29: Construct the base with material from the stockpile and compact to relative compaction as specified in SANS 1200 MFL 5.4.3:
A31: 6.1.3.1 | C31: 8.3.3 b) 4) | D31: Stabilized base using type G5 material | E31: m³ | H31: =G31*F31 -> R 0.00
C33: 8.3.4 | D33: Stabilizing agent:
A35: 6.1.3.2 | D35: a) Slaked road lime | E35: t | H35: =G35*F35 -> R 0.00
A37: 6.1.3.3 | D37: b) Portland cement | E37: t | H37: =G37*F37 -> R 0.00
A47: Total Carried Forward | H47: =SUM(H6:H46) -> R0.00
A48: Total Brought Forward | H48: =H47 -> R0.00
D49: CONCRETE
A51: 6.1.4 | C51: SANS 1200G | D51: SCHEDULED FORMWORK ITEMS
C53: 8.2.1 | D53: Rough ( below ground):
D55: Vertical:
A56: 6.1.4.1 | D56: (a) To outside of walls | E56: m² | F56: 95 | H56: =G56*F56 -> R 0.00
A57: 6.1.4.2 | D57: (b) To inside of walls | E57: m² | F57: 78 | H57: R 0.00
A58: 6.1.4.3 | D58: (c) To sides of pipe supports | E58: m² | H58: R 0.00
C60: 8.2.2 | D60: Smooth (above ground):
D62: Vertical:
A63: 6.1.4.4 | D63: (a) To outside of walls | E63: m² | F63: 8 | H63: =G63*F63 -> R 0.00
A64: 6.1.4.5 | D64: (b) To inside of walls | E64: m² | F64: 6 | H64: R 0.00
A65: 6.1.4.6 | D65: (c) Columns and beams | E65: m² | F65: 30 | H65: R 0.00
C67: 8.2.2 | D67: Horizontal:
A68: 6.1.4.6 | D68: (a) To soffits of slab and beams and stairs | E68: m² | F68: 55 | H68: =G68*F68 -> R 0.00
A69: 6.1.4.7 | D69: (b) To landings and inclined to staircase | E69: m² | F69: 7 | H69: R 0.00
A70: 6.1.4.8 | D70: (c) To roof slab including 1/2 round drip on outside | E70: m² | F70: =6.64*7.561 -> 50 | H70: R 0.00
A71: 6.1.4.9 | D71: (d) To Beams | E71: m² | F71: 7 | H71: R 0.00
A72: 6.1.4.10 | D72: (e) To ground floor slab | E72: m² | F72: 38 | H72: =F72*G72 -> R 0.00
C74: 8.2.4 | D74: Box out holes and form voids:
A76: 6.1.4.11 | D76: Small, circular of diameter up to and including 0,35 m:
D77: Over 0 m deep up to 0,5m deep | E77: No. | F77: 3 | H77: =G77*F77 -> R 0.00
D79: Small, circular of diameter 0,35m up to and including 0,7m:
A80: 6.1.4.12 | D80: Over 0 m deep up to 0,5m deep | E80: No. | H80: =G80*F80 -> R 0.00
A82: 6.1.4.13 | D82: 150 x 250mm Deep for anchor bolts pockets | E82: No | H82: =G82*F82 -> R 0.00
A83: 6.1.4.14 | D83: 200 x 200mm for electrical cable | E83: No | H83: R 0.00
A84: 6.1.4.15 | D84: 300 x 300mm for 150 dia Pipes | E84: No | H84: R 0.00
A85: 6.1.4.16 | D85: 200 x 200 for 75 dia Pipes | E85: No | H85: R 0.00
A86: 6.1.4.17 | D86: 700 x 700 for 450 dia Pipes | E86: No | H86: R 0.00
A87: 6.1.4.18 | D87: 650 x 650 for 400 dia Pipes | E87: No | H87: R 0.00
A88: 6.1.4.19 | D88: 600 x 600 for 350 dia Pipes | E88: No | H88: R 0.00
A89: 6.1.4.20 | D89: 500 x 500 for 250 dia Pipes | E89: No | H89: R 0.00
A94: Total Carried Forward | H94: =SUM(H48:H93) -> R 0.00
A95: Total Brought Forward | H95: =H94 -> R 0.00
D96: SCHEDULED REINFORCEMENT ITEMS
A97: 6.1.4.21 | C97: 8.1.2.3a) | D97: Mild steel bars
D98: All sizes | E98: t | F98: 1 | H98: =G98*F98 -> R 0.00
A100: 6.1.4.22 | C100: 8.1.2.3a) | D100: High-tensile steel bars
D101: All sizes | E101: t | F101: =(F118*120*0.001)+(F120*120*0.001)+(F121*120*0.001)+(F123*120*0.001)+(F124*120*0.001)+(F125*120*0.001)+(F127*0.12*0.001) -> 10 | H101: =G101*F101 -> R 0.00
D103: High-tensile welded mesh
A104: 6.1.4.23 | D104: (a) Reference 395 | E104: m² | F104: =F122/0.1 -> 25 | H104: =G104*F104 -> R 0.00
A105: 6.1.4.24 | D105: (b) Reference 617 | E105: m² | F105: 0 | H105: R 0.00
A106: 6.1.4.25 | D106: (c) Reference 888 | E106: m² | F106: 0 | H106: R 0.00
A108: 6.1.4.26 | D108: Strength concrete 15 MPa/19mm
C109: 8.4.2 | D109: (a) Blinding layer in 50 mm thickness | E109: m² | F109: =50205283/1000000 -> 50 | H109: =G109*F109 -> R 0.00
D111: Strength concrete 20 MPa/8mm
A112: 6.1.4.27 | C112: PA 8.2.3 | D112: a) Screed to Floor Slab | E112: m³ | F112: =5.861*4.94*0.075 -> 2 | H112: =G112*F112 -> R 0.00
A113: 6.1.4.28 | C113: PA 8.2.3 | D113: b) Screed to Roof Slab | E113: m³ | F113: =7.56*6.64*0.075 -> 4 | H113: R 0.00
A114: 6.1.4.29 | D114: c) Screed to Landing | E114: m³ | F114: =4.94*1.3 -> 6 | H114: R 0.00
D116: Strength concrete 35 Mpa/19 mm
A117: 6.1.4.30 | C117: 8.4.3 | D117: (a) In strip footings | E117: m³ | F117: 0 | H117: =G117*F117 -> R 0.00
A118: 6.1.4.31 | C118: 8.4.3 | D118: (b) In floor slabs | E118: m³ | F118: 22 | H118: R 0.00
A119: 6.1.4.32 | C119: 8.4.3 | D119: (c) In concrete surround | E119: m³ | F119: 0 | H119: R 0.00
A120: 6.1.4.33 | C120: 8.4.3 | D120: (d) In roof slab | E120: m³ | F120: 15 | H120: R 0.00
A121: 6.1.4.34 | C121: 8.4.3 | D121: (e) In walls | E121: m³ | F121: 30 | H121: R 0.00
A122: 6.1.4.35 | C122: 8.4.3 | D122: (g) In apron slab | E122: m³ | F122: 3 | H122: R 0.00
A123: 6.1.4.36 | C123: 8.4.3 | D123: (h) In columns | E123: m³ | F123: =6*0.35*0.35*3.465 -> 3 | H123: =G123*F123 -> R 0.00
A124: 6.1.4.37 | C124: 8.4.3 | D124: (i) Ground floor slab | E124: m³ | F124: 10 | H124: =F124*G124 -> R 0.00
A125: 6.1.4.38 | C125: 8.4.3 | D125: (j) Sump | E125: m³ | F125: 1.0 | H125: =F125*G125 -> R 0.00
A126: 6.1.4.39 | C126: 8.4.3 | D126: (k) Staircase | E126: m³ | F126: 0 | H126: =F126*G126 -> R 0.00
A127: 6.1.4.40 | C127: 8.4.3 | D127: (l) Landing | E127: m³ | F127: 8 | H127: =F127*G127 -> R 0.00
A129: Total Carried Forward | H129: =SUM(H95:H128) -> R 0.00
A130: Total Brought Forward | H130: =H129 -> R 0.00
D132: Repair / alteration to existing damaged concrete elements (Provisional):
A133: 6.1.4.41 | D133: a)Strength concrete 20 Mpa/ 19mm mass Concrete | E133: m³ | F133: 0 | H133: =G133*F133 -> R 0.00
A134: 6.1.4.42 | D134: b) Strength concrete 25 Mpa/ 19mm reinforced Concrete | E134: m³ | F134: 0 | H134: R 0.00
D136: Test Blocks
A137: 6.1.4.42 | D137: Making and testing 150 × 150 × 150mm concrete strength test cubes | E137: Sum | F137: 1 | H137: =G137 -> R 0.00
C139: 8.70 | D139: Grouting
D140: Close all openings with a non-shrink grout after installation of pipe
A141: 6.1.4.43 | D141: 150 x 150 | E141: No | H141: =G141*F141 -> R 0.00
A142: 6.1.4.44 | D142: 200 x 200 | E142: No | H142: R 0.00
A143: 6.1.4.45 | D143: 400 x 400 | E143: No | H143: R 0.00
D145: Unformed surface finishes:
C147: 8.4.4 | D147: Steel-floated finish
A148: 6.1.4.46 | D148: (a) To top of floor slab | E148: m² | F148: 30 | H148: =G148*F148 -> R 0.00
A149: 6.1.4.47 | D149: (b) To top of roof slab | E149: m² | F149: 52 | H149: R 0.00
A150: 6.1.4.48 | D150: (c) To top of plinth | E150: m² | F150: 5 | H150: R 0.00
A151: 6.1.4.49 | D151: (d) To top of walls | E151: m² | F151: 76 | H151: R 0.00
A152: 6.1.4.50 | D152: (e ) To top and bottom of Ground floor slab | E152: m² | F152: 71 | H152: R 0.00
A153: 6.1.4.51 | D153: (f) To top of landing | E153: m² | F153: 5 | H153: R 0.00
C155: 8.2.3 | D155: Joints
D157: Joint Sealant
A158: 6.1.4.52 | D158: (a) Sealostrip on joints | E158: m | F158: =(2*5.64)+(2*6.211)+(2*6.561)+(2*5.64) -> 48 | H158: =G158*F158 -> R 0.00
A159: 6.1.4.53 | D159: (b) 2 Layers of malthoid or hard board between walls and roof slab | E159: m | F159: =(2*6.561)+(2*5.64) -> 24 | H159: R 0.00
D161: Drill 40 mm holes in rock to install Y32 Galvanized Anchors Grouted with:
A162: 6.1.4.54 | D162: a) ABE 395 grout | E162: No | H162: =G162*F162 -> R 0.00
A163: 6.1.4.55 | D163: b) Cement slush | E163: No | H163: R 0.00
D165: MISCELLANEOUS
A167: 6.1.5 | D167: Water tighness testing, inlcuding provision of water | E167: Sum | H167: =G167*F167 -> R 0.00
A169: Total Carried Forward | H169: =SUM(H130:H168) -> R 0.00
A170: Total Brought Forward | H170: =H169 -> R 0.00
A171: ITEM NO | B171: PAYMENT REFERENCE | C171: LI | D171: DESCRIPTION | E171: UNIT | F171: QTY | G171: RATE | H171: AMOUNT
A174: 6.2 | D174: PUMP STATION - WET WELL
A176: 6.2.1 | D176: Bulk excavation
C178: PSD 8.3.2 a) | D178: Excavate in all materials and use for embankment or backfill or dispose as ordered, from
A179: 6.2.1.1 | D179: a) Necessary excavations | E179: m³ | F179: 290 | H179: =G179*F179 -> R 0.00
D181: Extra-over for:
A183: 6.2.1.2 | C183: 8.3.2 b) | D183: (a) Intermediate excavation | E183: m³ | F183: =F179*0.15 -> 43.5 | H183: =G183*F183 -> R 0.00
A184: 6.2.1.3 | C184: 8.3.2 b) | D184: (b) Hard rock excavation | E184: m³ | F184: =F183 -> 43.5 | H184: R 0.00
A186: 6.2.2 | C186: SANS 1200 MFL | D186: BASE (LIGHT PAVEMENT STRUCTURES)
C188: SANS 1200 MFL 8.3.1 | D188: Construct base with material from commercial sources
A190: 6.2.2.1 | D190: a) Natural gravel (G4) | E190: m³ | F190: 25 | H190: =G190*F190 -> R 0.00
C192: SANS 1200 MFL 8.3.3 | D192: Construct base with material from designated excavations:
C194: 8.3.3 b) | D194: Construct the base with material from the stockpile and compact to relative compaction as specified in SANS 1200 MFL 5.4.3:
A196: 6.2.2.2 | C196: 8.3.3 b) 4) | D196: Stabilized base using type G5 material | E196: m³ | H196: =G196*F196 -> R 0.00
C198: 8.3.4 | D198: Stabilizing agent:
A200: 6.2.2.3 | D200: a) Slaked road lime | E200: t | H200: =G200*F200 -> R 0.00
A202: 6.2.2.4 | D202: b) Portland cement | E202: t | H202: =G202*F202 -> R 0.00
A204: 6.2.3 | D204: CONCRETE
C206: SANS 1200G | D206: SCHEDULED FORMWORK ITEMS
C208: 8.2.1 | D208: Rough ( below ground):
D210: Vertical:
A211: 6.2.3.1 | D211: (a) To outside of walls | E211: m² | F211: 65 | H211: =G211*F211 -> R 0.00
A212: 6.2.3.2 | D212: (b) To inside of walls | E212: m² | F212: 51 | H212: R 0.00
C214: 8.2.2 | D214: Smooth (above ground):
D216: Vertical:
A217: 6.2.3.3 | D217: (a) To outside of walls | E217: m² | F217: 0 | H217: =G217*F217 -> R 0.00
A218: 6.2.3.4 | D218: (b) To inside of walls | E218: m² | F218: 0 | H218: R 0.00
A219: 6.2.3.5 | D219: (c) Columns and beams | E219: m² | F219: 0 | H219: R 0.00
A227: Total Carried Forward | H227: =SUM(H170:H226) -> R 0.00
A228: Total Brought Forward | H228: =H227 -> R 0.00
C231: 8.2.2 | D231: Horizontal:
A232: 6.2.3.6 | D232: (a) To soffits of slab and beams and stairs | E232: m² | F232: 0 | H232: =G232*F232 -> R 0.00
A233: 6.2.3.7 | D233: (b) To landings and inclined to staircase | E233: m² | F233: 0 | H233: R 0.00
A234: 6.2.3.8 | D234: (c) To roof slab including 1/2 round drip on outside | E234: m² | F234: =3*3 -> 9 | H234: R 0.00
C236: 8.2.4 | D236: Box out holes and form voids:
D238: Small, circular of diameter up to and including 0,35 m:
A239: 6.2.3.9 | D239: Over 0 m deep up to 0,5m deep | E239: No. | F239: 3 | H239: =G239*F239 -> R 0.00
D241: Small, circular of diameter 0,35m up to and including 0,7m:
A242: 6.2.3.10 | D242: Over 0 m deep up to 0,5m deep | E242: No. | H242: =G242*F242 -> R 0.00
A244: 6.2.3.11 | D244: 150 x 250mm Deep for anchor bolts pockets | E244: No | H244: =G244*F244 -> R 0.00
A245: 6.2.3.12 | D245: 200 x 200mm for electrical cable | E245: No | H245: R 0.00
A246: 6.2.3.13 | D246: 300 x 300mm for 150 dia Pipes | E246: No | H246: R 0.00
A247: 6.2.3.14 | D247: 200 x 200 for 75 dia Pipes | E247: No | H247: R 0.00
A248: 6.2.3.15 | D248: 700 x 700 for 450 dia Pipes | E248: No | H248: R 0.00
A249: 6.2.3.16 | D249: 650 x 650 for 400 dia Pipes | E249: No | H249: R 0.00
A250: 6.2.3.17 | D250: 600 x 600 for 350 dia Pipes | E250: No | H250: R 0.00
A251: 6.2.3.18 | D251: 500 x 500 for 250 dia Pipes | E251: No | H251: R 0.00
D255: SCHEDULED REINFORCEMENT ITEMS
A256: 6.2.3.19 | C256: 8.1.2.3a) | D256: Mild steel bars
D257: All sizes | E257: t | F257: 1 | H257: =G257*F257 -> R 0.00
A259: 6.2.3.20 | C259: 8.1.2.3a) | D259: High-tensile steel bars
D260: All sizes | E260: t | F260: 5 | H260: =G260*F260 -> R 0.00
D262: High-tensile welded mesh
A263: 6.2.3.21 | D263: (a) Reference 395 | E263: m² | H263: =G263*F263 -> R 0.00
A264: 6.2.3.22 | D264: (b) Reference 617 | E264: m² | H264: R 0.00
A265: 6.2.3.23 | D265: (c) Reference 888 | E265: m² | H265: R 0.00
A276: Total Carried Forward | H276: =SUM(H228:H275) -> R 0.00
A277: Total Brought Forward | H277: =H276 -> R 0.00
D278: Strength concrete 15 MPa/19mm
A279: 6.2.3.24 | C279: 8.4.2 | D279: (a) Blinding layer in 50 mm thickness | E279: m² | F279: 18 | H279: =G279*F279 -> R 0.00
A280: 6.2.3.25 | C280: 8.4.3 | D280: (d) Mass concrete | E280: m³ | F280: 25 | H280: R 0.00
D282: Strength concrete 20 MPa/8mm
A283: 6.2.3.26 | C283: PA 8.2.3 | D283: a) Screed to Floor Slab | E283: m³ | F283: 8 | H283: =G283*F283 -> R 0.00
A284: 6.2.3.27 | C284: PA 8.2.3 | D284: b) Screed to Roof Slab | E284: m³ | F284: 11 | H284: R 0.00
D286: Strength concrete 35 Mpa/19 mm
A287: 6.2.3.28 | C287: 8.4.3 | D287: (a) In strip footings | E287: m³ | F287: 0 | H287: =G287*F287 -> R 0.00
A288: 6.2.3.29 | C288: 8.4.3 | D288: (b) In floor slabs | E288: m³ | F288: 8 | H288: R 0.00
A289: 6.2.3.30 | C289: 8.4.3 | D289: (c) In concrete surround | E289: m³ | F289: 0 | H289: R 0.00
A290: 6.2.3.31 | C290: 8.4.3 | D290: (d) In roof slab | E290: m³ | F290: 5 | H290: R 0.00
A291: 6.2.3.32 | C291: 8.4.3 | D291: (e) In walls | E291: m³ | F291: 22 | H291: R 0.00
A292: 6.2.3.33 | D292: (f) Concrete Pliths | E292: m³ | F292: =2.065*1*0.2*2 -> 1 | H292: =F292*G292 -> R 0.00
D295: Repair / alteration to existing damaged concrete elements (Provisional):
A296: 6.2.3.34 | D296: a)Strength concrete 20 Mpa/ 19mm mass Concrete | E296: m³ | F296: 0 | H296: =G296*F296 -> R 0.00
A297: 6.2.3.35 | D297: b) Strength concrete 25 Mpa/ 19mm reinforced Concrete | E297: m³ | F297: 0 | H297: R 0.00
D299: Test Blocks
A300: 6.2.3.36 | D300: Making and testing 150 × 150 × 150mm concrete strength test cubes | E300: Sum | F300: 1 | H300: =G300 -> R 0.00
C302: 8.70 | D302: Grouting
D303: Close all openings with a non-shrink grout after installation of pipe
A304: 6.2.3.37 | D304: 150 x 150 | E304: No | H304: =G304*F304 -> R 0.00
A305: 6.2.3.38 | D305: 200 x 200 | E305: No | H305: R 0.00
A306: 6.2.3.39 | D306: 400 x 400 | E306: No | H306: R 0.00
D308: Unformed surface finishes:
C310: 8.4.4 | D310: Steel-floated finish
A311: 6.2.3.40 | D311: (a) To top of floor slab | E311: m² | F311: =2.5*2.5 -> 6 | H311: =G311*F311 -> R 0.00
A312: 6.2.3.41 | D312: (b) To top of roof slab | E312: m² | F312: =3*3 -> 9 | H312: R 0.00
A313: 6.2.3.42 | D313: (c) To top of plinth | E313: m² | F313: =2*1*2.065 -> 4 | H313: R 0.00
A314: 6.2.3.43 | D314: (d) To top of walls | E314: m² | F314: =4*2.5 -> 10 | H314: R 0.00
... 122 more rows

Sheet 7_CHAMBERS_PUMPSTATION
A2: CONTRACT NO:
A3: SCHEDULE 7: CHAMBERS
A4: ITEM NO | B4: LI | C4: DESCRIPTION | D4: UNIT | E4: QTY | F4: RATE | G4: AMOUNT
C6: SCHEDULE 7: CHAMBERS
A8: 7.1 | C8: INLET WORKS CHAMBER
C10: Bulk excavation
A12: 7.1.2 | B12: PSD 8.3.2 a) | C12: Excavate in all materials and use for embankment or backfill or dispose as ordered, from
C13: a) Necessary excavations | D13: m³ | E13: 280 | G13: =F13*E13 -> R 0.00
A15: 7.1.3 | C15: Extra-over for:
B17: 8.3.2 b) | C17: (a) Intermediate excavation | D17: m³ | E17: =E13*0.15 -> 42 | G17: =F17*E17 -> R 0.00
B18: 8.3.2 b) | C18: (b) Hard rock excavation | D18: m³ | E18: =E17 -> 42 | G18: R 0.00
B20: SANS 1200 D 8.3.3 a) | C20: Restricted excavation:
A21: 7.5 | C21: Excavate for restricted foundations, footings and pipe trenches in all materials and use for backfill or embankment or dispose:
C22: a) To bottom of blinding layer | D22: m3 | G22: =F22*E22 -> R 0.00
C23: b) Inlet and outlet pipes | D23: m3 | G23: R 0.00
A25: 7.6 | C25: Extra-over for:
C26: (a) Intermediate excavation | D26: m3 | G26: =F26*E26 -> R 0.00
C27: (b) Hard rock excavation | D27: m3 | G27: R 0.00
C28: (c) Hand excavation and backfill only where ordered by the Engineer | D28: m3 | G28: R 0.00
A29: 7.7 | C29: Dealing with water (Includes the continual dewatering of foundations for the encountering of ground water and stormwater) | D29: Sum | G29: R 0.00
A31: 7.8 | C31: Safeguard the bulk excavation and maintain for the construction period until the backfill is complete | D31: Sum | G31: =F31*E31 -> R 0.00
B33: SANS 1200 MFL | C33: BASE (LIGHT PAVEMENT STRUCTURES)
A35: 7.1 | B35: SANS 1200 MFL 8.3.1 | C35: Construct base with material from commercial sources
C37: a) Natural gravel (G4) | D37: m³ | E37: 75 | G37: =F37*E37 -> R 0.00
A39: 7.11 | B39: SANS 1200 MFL 8.3.3 | C39: Construct base with material from designated excavations:
A41: 7.12 | B41: 8.3.3 b) | C41: Construct the base with material from the stockpile and compact to relative compaction as specified in SANS 1200 MFL 5.4.3:
A43: 7.12.1 | B43: 8.3.3 b) 4) | C43: Stabilized base using type G5 material | D43: m³ | G43: =F43*E43 -> R 0.00
A45: 7.13 | B45: 8.3.4 | C45: Stabilizing agent:
C47: a) Slaked road lime | D47: t | G47: =F47*E47 -> R 0.00
C49: b) Portland cement | D49: t | G49: =F49*E49 -> R 0.00
C51: CONCRETE
A53: 7.1.4 | B53: SANS 1200G | C53: SCHEDULED FORMWORK ITEMS
B55: 8.2.1 | C55: Rough ( below ground):
C57: Vertical:
A58: 7.1.4.1 | C58: (a) To outside of walls | D58: m² | E58: 100 | G58: =F58*E58 -> R 0.00
A59: 7.1.4.2 | C59: (b) To inside of walls | D59: m² | E59: 85 | G59: R 0.00
A60: 7.1.4.3 | C60: (c) To sides of pipe supports | D60: m² | E60: 0.5 | G60: R 0.00
A61: 7.1.4.4 | C61: (e) Concrete staircase | D61: m² | E61: 10
B63: 8.2.4 | C63: Box out holes and form voids:
C65: Small, circular of diameter up to and including 0,35 m:
A67: 7.1.4.5 | C67: Over 0 m deep up to 0,5m deep | D67: No. | E67: 2 | G67: =F67*E67 -> R 0.00
C69: Small, circular of diameter 0,35m up to and including 0,7m:
A71: 7.1.4.6 | C71: Over 0 m deep up to 0,5m deep | D71: No. | G71: =F71*E71 -> R 0.00
A73: 7.1.4.7 | C73: 150 x 250mm Deep for anchor bolts pockets | D73: No | G73: =F73*E73 -> R 0.00
A74: 7.1.4.8 | C74: 200 x 200mm for electrical cable | D74: No | G74: R 0.00
A75: 7.1.4.9 | C75: 300 x 300mm for 150 dia Pipes | D75: No | G75: R 0.00
A76: 7.1.4.10 | C76: 200 x 200 for 75 dia Pipes | D76: No | G76: R 0.00
A77: 7.1.4.11 | C77: 700 x 700 for 450 dia Pipes | D77: No | G77: R 0.00
A78: 7.1.4.12 | C78: 650 x 650 for 400 dia Pipes | D78: No | G78: R 0.00
A79: 7.1.4.13 | C79: 600 x 600 for 350 dia Pipes | D79: No | G79: R 0.00
A80: 7.1.4.14 | C80: 500 x 500 for 250 dia Pipes | D80: No | G80: R 0.00
A82: Total Carried Forward | G82: =SUM(G6:G81) -> R 0.00
A83: Total Brought Forward | G83: =G82 -> R0.00
C84: SCHEDULED REINFORCEMENT ITEMS
B85: 8.1.2.3a) | C85: Mild steel bars
A86: 7.1.5 | C86: All sizes | D86: t | E86: 0.2 | G86: =F86*E86 -> R 0.00
B88: 8.1.2.3a) | C88: High-tensile steel bars
A89: 7.1.6 | C89: All sizes | D89: t | E89: 10 | G89: =F89*E89 -> R 0.00
C91: High-tensile welded mesh
A92: 7.1.7 | C92: (a) Reference 395 | D92: m² | G92: =F92*E92 -> R 0.00
A93: 7.1.8 | C93: (b) Reference 617 | D93: m² | G93: R 0.00
A94: 7.1.9 | C94: (c) Reference 888 | D94: m² | G94: R 0.00
C96: Strength concrete 15 MPa/19mm
A97: 7.1.10 | B97: 8.4.2 | C97: (a) Blinding layer in 50 mm thickness | D97: m² | E97: 48 | G97: =F97*E97 -> R 0.00
A98: 7.1.11 | B98: 8.4.3 | C98: (b) Fill pockets for suction pipes | D98: m³ | G98: R 0.00
A99: 7.1.12 | B99: 8.4.3 | C99: (c) Cable ducts (500mm thick) | D99: m² | G99: R 0.00
A100: 7.1.13 | B100: 8.4.3 | C100: (d) Mass concrete | D100: m³ | E100: 42 | G100: R 0.00
C102: Strength concrete 20 MPa/8mm
A103: 7.1.14 | B103: PA 8.2.3 | C103: a) Screed to Floor Slab | D103: m³ | E103: 4 | G103: =F103*E103 -> R 0.00
C105: Strength concrete 35 MPa/19 mm
A106: 7.1.15 | B106: 8.4.3 | C106: (a) In strip footings | D106: m³ | E106: 1 | G106: =F106*E106 -> R 0.00
A107: 7.1.16 | B107: 8.4.3 | C107: (b) In floor slabs | D107: m³ | E107: 15 | G107: R 0.00
A108: 7.1.17 | B108: 8.4.3 | C108: (c) In concrete surround | D108: m³ | G108: R 0.00
A109: 7.1.18 | B109: 8.4.3 | C109: (e) In walls | D109: m³ | E109: 26 | G109: R 0.00
C111: Test Blocks
A112: 7.1.19 | B112: XX | C112: Making and testing 150 × 150 × 150mm concrete strength test cubes | D112: Prov Sum | G112: =F112 -> R 0.00
A114: 7.1.6 | C114: Overheads, charges and profit on item above | D114: % | E114: 10.00 | G114: =E114*F114 -> R 0.00
B116: 8.70 | C116: Grouting
C117: Close all openings with a non-shrink grout after installation of pipe
A118: 7.1.21 | C118: 150 x 150 | D118: No | G118: =F118*E118 -> R 0.00
A119: 7.1.22 | C119: 200 x 200 | D119: No | G119: R 0.00
A120: 7.1.23 | C120: 400 x 400 | D120: No | G120: R 0.00
A121: 7.1.24 | C121: 700 x 700mm for 450 dia pipes | D121: No | G121: R 0.00
A122: 7.1.25 | C122: 650 x 650 for 400 dia pipes | D122: No | E122: 2 | G122: R 0.00
A124: 7.1.26 | C124: 651 x 650 for 355 dia pipes | D124: No | G124: =F124*E124 -> R 0.00
A125: 7.1.27 | C125: 652 x 650 for 250 dia pipes | D125: No | G125: R 0.00
C127: Unformed surface finishes:
B129: 8.4.4 | C129: Steel-floated finish
A130: 7.1.28 | C130: (a) To top of floor slab | D130: m² | E130: 51 | G130: =F130*E130 -> R 0.00
A131: 7.1.29 | C131: (b) To top of roof slab | D131: m² | G131: R 0.00
A132: 7.1.30 | C132: (d) To top of walls | D132: m² | E132: 86 | G132: R 0.00
C134: Joints
B135: 8.2.3
C137: Joint Sealant
A138: 7.1.31 | C138: (a) Sealostrip on joints | D138: m | E138: 10 | G138: =F138*E138 -> R 0.00
A139: 7.1.32 | C139: (b) 2 Layers of malthoid or hard board between walls and roof slab | D139: m | E139: 42 | G139: R 0.00
C141: Drill 40 mm holes in rock to install Y32 Galvanized Anchors Grouted with:
A143: Total Carried Forward | G143: =SUM(G83:G142) -> R 0.00
A144: Total Brought Forward | G144: =G143 -> R 0.00
A146: 7.1.33 | C146: a) ABE 395 grout | D146: No | G146: =F146*E146 -> R 0.00
A147: 7.1.34 | C147: b) Cement slush | D147: No | G147: R 0.00
A149: 7.1.35 | C149: Water tighness testing, including provision of water | D149: Sum | G149: =F149*E149 -> R 0.00
C151: Ladders, complete and installed:
A152: 7.1.36 | C152: (a) Access steps at bunded areas | D152: No. | E152: 1 | G152: =F152*E152 -> R 0.00
A153: 7.1.37 | C153: (b) Ladder max 2,5m high, including safety cage | D153: No. | E153: 0 | G153: R 0.00
A154: 7.1.38 | C154: c) Ladder max 5,0m high, including safety cage | D154: No. | E154: 0 | G154: R 0.00
A156: 7.1.39 | C156: 1m x 1m x 1m deep in 230 plastered brickworks with concrete base and cover slab | D156: No. | G156: =F156*E156 -> R 0.00
A164: Total Carried Forward | G164: =SUM(G144:G163) -> R 0.00
A165: Total Brought Forward | G165: =G164 -> R 0.00
C166: SCHEDULE 7: CHAMBERS
A168: 7.2 | C168: EMERGENCY STORAGE CHAMBER
C170: Bulk excavation
A172: 7.2.1 | B172: PSD 8.3.2 a) | C172: Excavate in all materials and use for embankment or backfill or dispose as ordered, from
C173: a) Necessary excavations | D173: m³ | E173: 20 | G173: =F173*E173 -> R 0.00
C175: Extra-over for:
A177: 7.2.2 | B177: 8.3.2 b) | C177: (a) Intermediate excavation | D177: m³ | E177: =E173*0.15 -> 3 | G177: =F177*E177 -> R 0.00
A178: 7.2.3 | B178: 8.3.2 b) | C178: (b) Hard rock excavation | D178: m³ | E178: =E177 -> 3 | G178: R 0.00
B180: SANS 1200 D 8.3.3 a) | C180: Restricted excavation:
C181: Excavate for restricted foundations, footings and pipe trenches in all materials and use for backfill or embankment or dispose:
A182: 7.2.4 | C182: a) To bottom of blinding layer | D182: m³ | E182: 10 | G182: =F182*E182 -> R 0.00
A183: 7.2.5 | C183: b) Inlet and outlet pipes | D183: m³ | G183: R 0.00
C185: Extra-over for:
A186: 7.2.6 | C186: (a) Intermediate excavation | D186: m³ | E186: 2 | G186: =F186*E186 -> R 0.00
A187: 7.2.7 | C187: (b) Hard rock excavation | D187: m³ | E187: 2 | G187: R 0.00
A188: 7.2.8 | C188: (c) Hand excavation and backfill only where ordered by the Engineer | D188: m3 | E188: 1 | G188: R 0.00
A189: 7.2.9 | C189: Dealing with water (Includes the continual dewatering of foundations for the encountering of ground water and stormwater) | D189: Sum | E189: 1 | G189: R 0.00
A190: 7.2.10
A191: 7.2.11 | C191: Safeguard the bulk excavation and maintain for the construction period until the backfill is complete | D191: Sum | E191: 1 | G191: =F191*E191 -> R 0.00
B193: SANS 1200 MFL | C193: BASE (LIGHT PAVEMENT STRUCTURES)
B195: SANS 1200 MFL 8.3.1 | C195: Construct base with material from commercial sources
A197: 7.2.12 | C197: a) Natural gravel (G4) | E197: 75 | G197: =F197*E197 -> R 0.00
B199: SANS 1200 MFL 8.3.3 | C199: Construct base with material from designated excavations:
B201: 8.3.3 b) | C201: Construct the base with material from the stockpile and compact to relative compaction as specified in SANS 1200 MFL 5.4.3:
A203: 7.2.13 | B203: 8.3.3 b) 4) | C203: Stabilized base using type G5 material | D203: m³ | G203: =F203*E203 -> R 0.00
B205: 8.3.4 | C205: Stabilizing agent:
A207: 7.2.14 | C207: a) Slaked road lime | D207: t | G207: =F207*E207 -> R 0.00
A209: 7.2.15 | C209: b) Portland cement | D209: t | G209: =F209*E209 -> R 0.00
A212: Total Carried Forward | G212: =SUM(G165:G211) -> R 0.00
A213: Total Brought Forward | G213: =G212 -> R 0.00
C214: CONCRETE
B216: SANS 1200G | C216: SCHEDULED FORMWORK ITEMS
A218: 7.2.16 | B218: 8.2.1 | C218: Rough ( below ground):
C220: Vertical:
A221: 7.2.16.1 | C221: (a) To outside of walls | D221: m² | E221: 188 | G221: =F221*E221 -> R 0.00
A222: 7.2.16.2 | C222: (b) To inside of walls | D222: m² | E222: 162 | G222: =E222*F222 -> R 0.00
A223: 7.2.16.3 | C223: (c) To sides of pipe supports | D223: m² | G223: R 0.00
B225: 8.2.2 | C225: Smooth (above ground):
C227: Vertical:
A228: 7.2.16.4 | C228: (a) To outside of walls | D228: m² | E228: 15 | G228: =F228*E228 -> R 0.00
A229: 7.2.16.5 | C229: (b) To inside of walls | D229: m² | E229: 12 | G229: =F229*E222 -> R 0.00
C231: Horizontal:
A232: 7.2.16.6 | C232: (a) To soffits of slab and beams and stairs | D232: m² | E232: 30 | G232: =F232*E232 -> R 0.00
B235: 8.2.4 | C235: Box out holes and form voids:
C237: Small, circular of diameter up to and including 0,35 m:
A239: 7.2.17 | C239: Over 0 m deep up to 0,5m deep | D239: No. | E239: 3 | G239: =F239*E239 -> R 0.00
C241: Small, circular of diameter 0,35m up to and including 0,7m:
A243: 7.2.17.1 | C243: Over 0 m deep up to 0,5m deep | D243: No. | G243: =F243*E243 -> R 0.00
A245: 7.2.17.2 | C245: 150 x 250mm Deep for anchor bolts pockets | D245: No | G245: =F245*E245 -> R 0.00
A246: 7.2.17.3 | C246: 200 x 200mm for electrical cable | D246: No | G246: R 0.00
A247: 7.2.17.4 | C247: 300 x 300mm for 150 dia Pipes | D247: No | G247: R 0.00
A248: 7.2.17.5 | C248: 200 x 200 for 75 dia Pipes | D248: No | G248: R 0.00
A249: 7.2.17.6 | C249: 700 x 700 for 450 dia Pipes | D249: No | G249: R 0.00
A250: 7.2.17.7 | C250: 650 x 650 for 400 dia Pipes | D250: No | G250: R 0.00
A251: 7.2.17.8 | C251: 600 x 600 for 350 dia Pipes | D251: No | G251: R 0.00
A252: 7.2.17.9 | C252: 500 x 500 for 250 dia Pipes | D252: No | G252: R 0.00
C254: SCHEDULED REINFORCEMENT ITEMS
A255: 7.2.18 | B255: 8.1.2.3a) | C255: Mild steel bars
C256: All sizes | D256: t | E256: 1 | G256: =F256*E256 -> R 0.00
A258: 7.2.19 | B258: 8.1.2.3a) | C258: High-tensile steel bars
C259: All sizes | D259: t | E259: 11 | G259: =F259*E259 -> R 0.00
C261: High-tensile welded mesh
A262: 7.2.20 | C262: (a) Reference 395 | D262: m² | G262: =F262*E262 -> R 0.00
A263: 7.2.21 | C263: (b) Reference 617 | D263: m² | G263: R 0.00
A264: 7.2.22 | C264: (c) Reference 888 | D264: m² | G264: R 0.00
C266: Strength concrete 15 MPa/19mm
A267: 7.2.23 | B267: 8.4.2 | C267: (a) Blinding layer in 50 mm thickness | D267: m² | E267: 60 | G267: =F267*E267 -> R 0.00
C269: Strength concrete 20 MPa/8mm
A270: 7.2.24 | B270: PA 8.2.3 | C270: a) Screed to Floor Slab | D270: m³ | E270: =ROUND(7.7*7.7*0.4,0) -> 24 | G270: =F270*E270 -> R 0.00
C272: Strength concrete 35 MPa/19 mm
A273: 7.2.25 | B273: 8.4.3 | C273: (b) In floor slabs | D273: m³ | E273: 16 | G273: =F273*E273 -> R 0.00
A274: 7.2.26 | B274: 8.4.3 | C274: (e) In walls | D274: m³ | E274: 52 | G274: R 0.00
A275: 7.2.27 | C275: (f) In concrete roof | D275: m³ | E275: 16
A277: Total Carried Forward | G277: =SUM(G213:G276) -> R 0.00
A278: Total Bought Forward | G278: =G277 -> R 0.00
C281: Test Blocks
A282: 7.2.28 | B282: XX | C282: Making and testing 150 × 150 × 150mm concrete strength test cubes | D282: Prov Sum | E282: 1 | G282: =F282*E282 -> R 0.00
A284: 7.2.29 | C284: Overheads, charges and profit on item above | D284: % | G284: =E284*F284 -> R 0.00
B286: 8.70 | C286: Grouting
C287: Close all openings with a non-shrink grout after installation of pipe
A288: 7.2.30 | C288: 150 x 150 | D288: No | G288: =F288*E288 -> R 0.00
A289: 7.2.31 | C289: 200 x 200 | D289: No | G289: R 0.00
A290: 7.2.32 | C290: 400 x 400 | D290: No | G290: R 0.00
A291: 7.2.33 | C291: 700 x 700mm for 450 dia pipes | D291: No | G291: R 0.00
A292: 7.2.34 | C292: 650 x 650 for 400 dia pipes | D292: No | G292: R 0.00
A294: 7.2.35 | C294: 651 x 650 for 355 dia pipes | D294: No | G294: =F294*E294 -> R 0.00
A295: 7.2.36 | C295: 652 x 650 for 250 dia pipes | D295: No | G295: R 0.00
C297: Unformed surface finishes:
B298: 8.4.4 | C298: Steel-floated finish
A299: 7.2.37 | C299: (a) To top of floor slab | D299: m² | E299: 60 | G299: =F299*E300 -> R 0.00
A300: 7.2.38 | C300: (b) To top of roof slab | D300: m² | E300: 45 | G300: =E300*F300 -> R 0.00
... 11 more rows

Sheet 8_SEWERS_
A2: CONTRACT NO:
A3: SCHEDULE 8: SEWERS
A4: ITEM NO | B4: LI | C4: PAYMENT | D4: DESCRIPTION | E4: UNIT | F4: QTY | G4: RATE | H4: AMOUNT
A5: 8 | C5: SANS1200 LD | D5: SCHEDULE 8: SEWERS
C7: 8.2 | D7: SCHEDULED ITEM
C9: 8.2.1 | D9: Supply , Lay, Joint, Bed, backfill on flexible bedding Pipes Complete with couplings and Test pipeline
D11: a) Pipes: Class 34 Solid wall or 400kPa uPVC, SANS 791/1601/21138-1/21138-2/21138-3
A13: 8.01 | D13: 160mm dia. | E13: m | F13: 40 | H13: =G13*F13 -> R0.00
A15: 8.02 | D15: 200mm dia. | E15: m | H15: =G15*F15 -> R0.00
A17: 8.03 | D17: 250mm dia. | E17: m | H17: =G17*F17 -> R0.00
A19: 8.04 | D19: 315mm dia. | E19: m | F19: 2,210 | H19: =G19*F19 -> R0.00
A21: 8.05 | D21: 355 mm dia. | E21: m | H21: =G21*F21 -> R0.00
A23: 8.06 | D23: 400mm dia. | E23: m | H23: =G23*F23 -> R0.00
C25: 8.2.3 | D25: Manholes
D27: Supply and erect precast concrete manholes of type as approved by the Employer’s agent as shown in standard detailed drawings including excavations, backfilling and compaction, including construction of in-situ bases, concrete benching and channeling: include manhole covers and frames, approved step irons. All manholes to be water tight with a method as approved by the Employers’ agent
D29: a) Manholes Rings of up to and including 1250mm dia. to depth:
A31: 8.07 | D31: 1m to 1.5m | E31: No | F31: 2 | H31: =G31*F31 -> R0.00 | J31: =F31+F33+F35+F37+F39 -> 44
A33: 8.08 | D33: 2.0m to 2.5m | E33: No | F33: 24 | H33: =G33*F33 -> R0.00
A35: 8.09 | D35: 3.0m to 3.5m | E35: No | F35: 11 | H35: =G35*F35 -> R0.00
A37: 8.10 | D37: 4.0m to 4.5m | E37: No | F37: 7 | H37: =G37*F37 -> R0.00
A39: 8.11 | D39: Greater than 5.0m deep | E39: No | H39: =G39*F39 -> R0.00
A41: Total Carried Forward | H41: =SUM(H7:H40) -> R0.00
A43: Total Brought Forward | H43: =H41 -> R0.00
D44: b) Manholes Rings greater than 1250m dia. up to and including 1500mm dia. to depth:
A46: 8.12 | D46: 0m to 2.0m | E46: No | H46: =G46*F46 -> R0.00
A48: 8.13 | D48: 2.0m to 3.0m | E48: No | H48: =G48*F48 -> R0.00
A50: 8.14 | D50: 3.0m to 4.0m | E50: No | F50: 2 | H50: =G50*F50 -> R0.00
A52: 8.15 | D52: 4.0m to 5.0m | E52: No | H52: =G52*F52 -> R0.00
A54: 8.16 | D54: Greater than 5.0m deep | E54: No | H54: =G54*F54 -> R0.00
D56: c) Manholes Rings greater than 1500m dia. up to and including 1750mm dia. to depth:
A58: 8.17 | D58: 0m to 2.0m | E58: No | H58: =G58*F58 -> R0.00
A60: 8.18 | D60: 2.0m to 3.0m | E60: No | H60: =G60*F60 -> R0.00
A62: 8.19 | D62: 3.0m to 4.0m | E62: No | H62: =G62*F62 -> R0.00
A64: 8.20 | D64: 4.0m to 5.0m | E64: No | H64: =G64*F64 -> R0.00
A66: 8.21 | D66: Greater than 5.0m deep | E66: No | H66: =G66*F66 -> R0.00
D68: d) Manholes Rings greater than 1750m dia. up to and including 2000mm dia. to depth:
A70: 8.22 | D70: 0m to 2.0m | E70: No | H70: =G70*F70 -> R0.00
A72: 8.23 | D72: 2.0m to 3.0m | E72: No | H72: =G72*F72 -> R0.00
A74: 8.24 | D74: 3.0m to 4.0m | E74: No | H74: =G74*F74 -> R0.00
A76: 8.25 | D76: 4.0m to 5.0m | E76: No | H76: =G76*F76 -> R0.00
A78: 8.26 | D78: Greater than 5.0m deep | E78: No | H78: =G78*F78 -> R0.00
D80: e) Manholes Rings greater than 2000mm dia. up to and including 2600mm dia. to depth:
A82: 8.27 | D82: 0m to 2.0m | E82: No | H82: =G82*F82 -> R0.00
A84: 8.28 | D84: 2.0m to 3.0m | E84: No | H84: =G84*F84 -> R0.00
A86: Total Carried Forward | H86: =SUM(H43:H85) -> R0.00
A88: Total Brought Forward | H88: =H86 -> R0.00
A89: 8.29 | D89: 3.0m to 4.0m | E89: No | F89: 5 | H89: =G89*F89 -> R0.00
A91: 8.30 | D91: 4.0m to 5.0m | E91: No | H91: =G91*F91 -> R0.00
A93: 8.31 | D93: Greater than 5.0m deep | E93: No | H93: =G93*F93 -> R0.00
C96: 8.2.3 | D96: Manholes
A98: 8.32 | D98: Benching required to accommodate more than 2 pipes entering a manhole. | E98: No | F98: 3 | H98: =G98*F98 -> R0.00
C100: 8.2.6 | D100: Erf Connections
D102: Supply, bed, lay, joint, and test new property connection including all fittings related to the erf connections:
A104: 8.33 | D104: a) 110mm dia. uPVC Class 34 Solid wall | E104: No | H104: =G104*F104 -> R0.00
A106: 8.34 | C106: 8.2.7 | D106: Encasing of pipes in concrete (20Mpa concrete) | E106: m³ | H106: =G106*F106 -> R0.00
C108: 8.2.8 | D108: Anchor blocks
A110: 8.35 | C110: PSL 8 | D110: Provide concrete anchor blocks of any size | E110: m³ | H110: =G110*F110 -> R0.00
A112: 8.36 | C112: 8.2.10 | D112: Permanent Plug Stoppers | E112: No | H112: =G112*F112 -> R0.00
A114: 8.37 | C114: 8.2.11 | D114: Connection to existing sewer:
A116: 8.38 | D116: Break existing manhole, channel and benching and rebuilt manhole with new channel and benching the rate shall include any temporary sewer diversion or over pumping required | E116: No | H116: =G116*F116 -> R0.00
C118: 8.2.12 | D118: Raising or Lowering of existing manhole:
A120: 8.39 | D120: a) Inspection of sewer line for damages/blockages and pipe direction in conjunction with the supervisor | E120: No | H120: =G120*F120 -> R0.00
A122: 8.40 | D122: b) Cleaning and unblocking of existing sewer pipe and tie-in manholes as instructed by the supervisor | E122: No | H122: =G122*F122 -> R0.00
A156: Total Carried Forward To Summary | H156: =SUM(H88:H155) -> R0.00

Sheet 9_MEDIUM PRESSURE PIPES_
A2: CONTRACT NO:
A3: SCHEDULE 9: MEDIUM PRESSURE PIPES
A4: ITEM NO | B4: PAYMENT REFERENCE | C4: LI | D4: DESCRIPTION | E4: UNIT | F4: QTY | G4: RATE | H4: AMOUNT
A7: 9 | D7: SCHEDULE 9: MEDIUM PRESSURE PIPELINES
A9: 9.1 | C9: SANS 1200 L | D9: MEDIUM PRESSURE PIPELINES
D10: Supply, handle, lay and bed OPVC Class 12 pipes with rubber ring couplings to SANS 966, test and disinfect
A11: 9.1.1 | C11: 8.2.1 | D11: 315mm dia | E11: m | F11: 300 | H11: =G11*F11 -> R 0.00
C13: SANS 1200 L | D13: SPECIALS AND FITTINGS
C14: 8.2.2 | D14: Extra-over Item 2.4 for the supply, lay and bed of fittings with socket end joints, incl. cut lengths, disinfect
A15: 9.1.2 | D15: 160mm dia x 22.5° | E15: No | H15: =G15*F15 -> R 0.00
A17: 9.2 | D17: CONNECTION TO EXISTING WATER NETWORK
A19: 9.2.1 | D19: Supply all labor and material to connect to main supply pipeline including excavation backfill, disposal of surplus material, cutting of pipes and moving of fittings and making good | E19: Prov. Sum | F19: 1 | H19: =G19*F19 -> R 0.00
A21: 9.2.2 | D21: Overheads, charges and profit on item above | E21: % | F21: =G19 -> 0 | H21: =F21*G21 -> R 0.00
A38: Total Carried Forward To Summary | H38: =SUM(H8:H21) -> 0

Sheet 10_STRUCTURAL STEEL_PUMPSTATION
B2: CONTRACT NO:
B3: SCHEDULE 10: STRUCTURAL STEEL
B4: Item No | C4: Payment | D4: Description | E4: Unit | F4: Qty | G4: Rate | H4: Amount (Rand)
A5: 1089 | B5: 10. | D5: SCHEDULE 10: STRUCTURAL STEELWORKS
A7: 4960 | B7: 10.1 | C7: SANS 1200H | D7: STRUCTURAL STEELWORK - PUMP STATION
A9: 4961 | B9: 10.2 | C9: PSHA 8.3.2 | D9: HANDRAILS
A11: 4962 | B11: 10.2.1 | D11: Top-Fixed Handrails around access openings as specified on Drawing | E11: m | F11: 30.0 | H11: =F11*G11 -> 0.00
A15: 4965 | B15: 10.3 | C15: PSHA 8.3.7 | D15: ACCESS COVERS
A17: 4966 | B17: 10.3.1 | D17: a) Access cover on pump station roof structures for 1200x1200mm clear opening complete with base frames, brackets, locking device etc. as per Drg No. | E17: No. | F17: 4.0 | H17: =F17*G17 -> 0.00
A19: 4968 | B19: 10.3.3 | D19: c) Frames, brackets, locking device etc. on access manhole cover type 2A for chambers as per Drg. No. | E19: No. | H19: =F19*G19 -> 0.00
A21: 4969 | B21: 10.4 | D21: LADDERS
A23: 4974 | C23: PSHA 8.3.3 | D23: b) Galvanized Steel
A25: 4975 | B25: 10.4.4 | D25: i) Complete galvanized steel cat ladder for valve chambers not deeper than 3m fixed to wall as per drawing as per Drg. No. | E25: No. | F25: 3.0 | H25: =F25*G25 -> 0.00
A29: 4977 | B29: 10.5 | C29: 8.2.3 | D29: AIR VENTILATOR
A31: 4978 | B31: 10.5.1 | D31: a) Air ventilator complete on reservoir roof as per detail on Drg. No. | E31: No. | F31: 6.0 | H31: =F31*G31 -> 0.00
B33: Total Carried Forward | H33: =SUM(H5:H32) -> 0.00
B34: Total Brought Forward | H34: =H33 -> 0.00
A36: 4981 | B36: 10.6 | D36: FLOORING
A38: 4984 | C38: PSHA 8.3.4 | D38: b) Prefabricated floor grids
A39: 4985 | B39: 10.6.1 | D39: i) Prefabricated mentis 50x4.5 mm floor grid complete for tower shaft access staircase landings | E39: m² | H39: =F39*G39 -> 0.00
B41: 10,7 | D41: Structural Steel
B43: 10,7,1 | D43: 254 X 146 I- Beam Structural Steel ( legth 8,3m) | E43: ton | F43: 0.6 | H43: =G43 -> 0.00
B91: Total Carried Forward To Summary | H91: =SUM(H34:H90) -> R0.00

Sheet 11_GUARDHOUSE_PUMPSTATION
B2: CONTRACT NO:
B3: SCHEDULE 11: GUARDHOUSE
B4: Item No | C4: Payment | D4: Description | E4: Unit | F4: Qty | G4: Rate | H4: Amount (Rand)
A5: 1564 | B5: 11. | D5: SCHEDULE 11: BUILDING WORKS (GUARDHOUSE)
A7: 4713 | B7: 11.1 | C7: SANS 1200DB | D7: BULK EXCAVATION
A9: 4714 | B9: 11.1.1 | C9: 8.3.2 | D9: Excavate in all materials and use for embankment or backfill or dispose, as ordered | E9: m³ | F9: 56.0 | H9: =F9*G9 -> 0.00
A11: 4715 | D11: Extra-over for:
A13: 4716 | B13: 11.1.2 | C13: 8.3.2 | D13: Hard rock excavation | E13: m³ | H13: =F13*G13 -> 0.00
A15: 4717 | D15: Foundation Fill (Provisional)
A17: 4718 | D17: Compacted to 93% - 96% MOD AASTHO in layers of 150mm thickness as specified on the drawing, consisting of:
A19: 4719 | B19: 11.1.3 | C19: 8.3.4 | D19: Approved G6 Material | E19: m³ | F19: 2.4 | H19: =F19*G19 -> 0.00
A21: 4720 | B21: 11.1.4 | C21: 8.3.4 | D21: Approved G7 Material | E21: m³ | H21: =F21*G21 -> 0.00
A23: 4721 | B23: 11.2 | C23: SANS 1200GB | D23: CONCRETE (STRUCTURAL)
A25: 4722 | D25: SCHEDULED FORMWORK ITEMS
A27: 4614 | C27: 8.2.1 | D27: Rough (Measured to 150mm below FGL where applicable)
A29: 4615 | D29: a) Plane Vertical
A31: 4616 | B31: 11.2.1 | C31: 8.2.1 | D31: i) Sides of footings | E31: m² | H31: =F31*G31 -> 0.00
A33: 4617 | D33: Smooth (Measured to 150mm below FGL where applicable)
A35: 4618 | D35: a) Plane Horizontal
A37: 4619 | B37: 11.2.2 | C37: 8.2.1 | D37: b.i) Sofit of Roof Slab | E37: m² | F37: 11.0 | H37: =F37*G37 -> 0.00
A39: 4620 | D39: Smooth
A41: 4621 | D41: a) Plane Horizontal and Vertical
A43: 4622 | B43: 11.2.3 | C43: 8.2.1 | D43: i) Concrete work top | E43: m² | F43: 1.2 | H43: =F43*G43 -> 0.00
A45: 4623 | D45: a) Plane Vertical
A47: 4624 | B47: 11.2.4 | C47: 8.2.1 | D47: b.i) Sides of Roof slabs including 20mmx20mm chamfer. (150mm-200mm high) | E47: m² | F47: =3+2 -> 5.0 | H47: =F47*G47 -> 0.00
A49: 4625 | B49: 11.3 | C49: 8.2.4 | D49: SCHEDULED REINFORCEMENT ITEMS
A51: 4626 | C51: 8.2.4 | D51: a) Mild steel bars
A53: 4627 | B53: 11.3.1 | D53: Diameter 10 mm: Basic price | E53: t | F53: 0.0 | H53: =F53*G53 -> 0.00
A55: 4628 | D55: Extra-over 13.4.1 for bars of diameter
A57: 4629 | B57: 11.3.2 | D57: (i) 8 mm | E57: t | H57: =F57*G57 -> 0.00
A59: 4630 | C59: 8.2.4 | D59: a) High-tensile steel bars
A61: 4631 | B61: 11.3.3 | D61: Diameter 12 mm: Basic price | E61: t | F61: 0.2 | H61: =F61*G61 -> 0.00
B63: Total Carried Forward | H63: =SUM(H5:H62) -> 0.00
B64: Brought Forward | H64: =H63 -> 0.00
A66: 4632 | D66: Extra-over 13.4.3 for bars of diameter
A68: 4633 | B68: 11.3.4 | D68: (i) 12 mm | E68: t | H68: =F68*G68 -> 0.00
A70: 4634 | C70: 8.2.4 | D70: c) High Tensile Welded Mesh
A72: 4635 | B72: 11.3.5 | D72: a) Ref No. 193 | E72: kg/m² | H72: =F72*G72 -> 0.00
A74: 4636 | B74: 11.3.6 | D74: b) Ref No. 395 | E74: kg/m² | F74: 22.0 | H74: =F74*G74 -> 0.00
A75: 4637 | B75: 11.3.7 | D75: c) Ref No. 617 | E75: kg/m² | F75: 30.0 | H75: =F75*G75 -> 0.00
A77: 4638 | B77: 11.4 | D77: SCHEDULED CONCRETE ITEMS
A79: 4639 | D79: Blinding Layer:
A81: 4640 | D81: Strength Concrete:
A83: 4641 | C83: 8.2.5.1 | D83: b) Class 35/19
A85: 4642 | B85: 11.4.1 | D85: i) Apron | E85: m³ | F85: 2.5 | H85: =F85*G85 -> 0.00
A87: 4643 | B87: 11.4.2 | D87: ii) Strip Footings | E87: m³ | F87: 6.0 | H87: =F87*G87 -> 0.00
A89: 4644 | B89: 11.4.3 | D89: iii) Floor Slabs | E89: m³ | F89: 1.6 | H89: =F89*G89 -> 0.00
A91: 4645 | B91: 11.4.4 | D91: iv) Roof Slabs | E91: m³ | F91: 3.0 | H91: =F91*G91 -> 0.00
A93: 4646 | B93: 11.4.5 | D93: iv) Concrete Work Top | E93: m³ | F93: 0.1 | H93: =F93*G93 -> 0.00
A95: 4647 | C95: 8.2.6 | D95: Unformed surface finishes:
A97: 4648 | C97: 8.2.6 | D97: a) Wood-floated finishes to:
A99: 4649 | B99: 11.4.6 | D99: i) to upper surface of apron | E99: m² | F99: 12.0 | H99: =F99*G99 -> 0.00
A101: 4650 | C101: 8.2.6 | D101: b) Steel-floated finishes to:
A103: 4651 | B103: 11.4.7 | D103: i) Screed on roof slab | E103: m² | F103: 11.0 | H103: =F103*G103 -> 0.00
A105: 4652 | B105: 11.4.8 | D105: ii) to upper surface of floor slabs | E105: m² | F105: 8.0 | H105: =F105*G105 -> 0.00
A107: 4653 | B107: 11.4.9 | D107: iii) to upper surface of work top | E107: m² | F107: 1.0 | H107: =F107*G107 -> 0.00
A109: 4654 | B109: 11.5 | D109: BUILDING WORK
A111: 4655 | B111: 11.5 | C111: PB 8.2.1 | D111: BRICKWORK
A113: 4656 | B113: 11.5.1 | D113: a) Supply and construct double brick wall (230mm), inclusive of mortar and brickforce every third layer, both faces face brick. | E113: m² | F113: 42.0 | H113: =F113*G113 -> 0.00
A115: 4657 | B115: 11.5.2 | D115: b) Supply and construct single brick wall (220mm), inclusive of mortar and brickforce every third layer, both faces face brick. | E115: m² | F115: 10.0 | H115: =F115*G115 -> 0.00
A117: 4658 | B117: 11.5.3 | D117: d) Supply and construct single brick wall (110mm), inclusive of mortar and brickforce every third layer, both faces face brick. | E117: m² | H117: =F117*G117 -> 0.00
A119: 4659 | B119: 11.5.4 | D119: e) Supply and install lintols (220x150mm) | E119: m | F119: 15.0 | H119: =F119*G119 -> 0.00
A121: 4660 | B121: 11.5.5 | D121: f) Supply and install lintols (110x150mm) | E121: m | H121: =F121*G121 -> 0.00
B123: Total Carried Forward | H123: =SUM(H64:H122) -> 0.00
B124: Total Brought Forward | H124: =H123 -> 0.00
A126: 4661 | B126: 11.5.6 | C126: PB 8.2.10 | D126: Supply and install Kilcher bearing strip (40kN/m) between concrete roof and brickwork. | E126: m² | F126: 3.0 | H126: =F126*G126 -> 0.00
A128: 4662 | B128: 11.5.7 | C128: PB 8.2.9 (b) | D128: Supply and install 250 Micron plastic sheeting underneath apron. | E128: m² | F128: 12.0 | H128: =F128*G128 -> 0.00
A130: 4663 | B130: 11.5.8 | C130: PB 8.2.9 (b) | D130: Supply and install two layers 500 micron thick plastic sheeting, 230mm wide between floor slab and brick wall. | E130: m² | F130: 6.0 | H130: =F130*G130 -> 0.00
A132: 4664 | B132: 11.5.9 | C132: PB 8.2.10 | D132: Supply and construct 10mm Isolation joint between walls and surface bed | E132: m | F132: 13.2 | H132: =F132*G132 -> 0.00
A134: 4665 | B134: 11.6 | C134: PB 8.2.6 | D134: PLASTERWORK
A136: 4666 | B136: 11.6.1 | D136: 10mm thick, wood floated finish to internal walls. | E136: m² | F136: 46.0 | H136: =F136*G136 -> 0.00
A138: 4667 | B138: 11.7 | C138: PB 8.2.4 | D138: WINDOW SILL
A140: 4668 | B140: 11.7.1 | C140: PB 8.2.4 | D140: a) Brick on edge on external side of window. | E140: m | F140: 3.0 | H140: =F140*G140 -> 0.00
A142: 4669 | B142: 11.7.2 | C142: PB 8.2.4 | D142: b) Quarry tile, 110mm wide, on internal side of window. | E142: m | H142: =F142*G142 -> 0.00
A144: 4670 | C144: PB 8.2.17 | D144: a) JOINERY
A146: 4671 | D146: Supply and install the following doors and windows complete with frame, hinges, locking devices, glass and burglar bars:
A148: 4672 | B148: 11.7.3 | D148: 815mm wide x 2030 mm High Transformer type AV louvre door, with heavy brass pintle hinges. (Inclusive of one coat steel primer paint and two coats of grey enamel based paint applied to all steel) | E148: No. | F148: 2.0 | H148: =F148*G148 -> 0.00
A150: 4673 | B150: 11.7.4 | D150: 800mm wide x 2032 mm High Standard residential Steel Frame door | E150: No. | F150: 2.0 | H150: =F150*G150 -> 0.00
A152: 4674 | B152: 11.7.5 | D152: 900mm wide x 2030 mm high semi solid door with 3.2mm hardwood veneer covering on both sides and concealed hardwood vertical edge strip hung to sliding gear. (Inclusive of two coats of weather varnish applied to all sides) | E152: No. | H152: =F152*G152 -> 0.00
A154: 4675 | B154: 11.7.6 | D154: 1486mm wide x 924mm high residential steel frame including 12mm dia. burgular proofing on full face window and 4mm clear glass glazed to spec. (Inclusive of one coat steel primer paint and two coats of grey enamel based paint applied to all steel) | E154: No. | H154: =F154*G154 -> 0.00
A156: 4676 | B156: 11.7.7 | D156: 4489mm wide x 1245 mm high residential type steel frame including 12mm dia. burgular proofing on full face window and 4mm clear glass glazed to spec. (Inclusive of one coat steel primer paint and two coats of charcoal enamel based paint applied to all steel) | E156: No. | H156: =F156*G156 -> 0.00
B162: Total Carried Forward | H162: =SUM(H124:H161) -> 0.00
B163: Total Brought Forward | H163: =H162 -> 0.00
A165: 4677 | B165: 11.7.8 | D165: 1022mm wide x 951 mm high residential type steel frame including 12mm dia. burgular proofing on full face window and 4mm clear glass glazed to spec. (Inclusive of one coat steel primer paint and two coats of charcoal enamel based paint applied to all steel) | E165: No. | H165: =F165*G165 -> 0.00
A167: 4678 | B167: 11.7.9 | D167: 533mm wide x 654mm high residential type steel frame including 12mm dia. burgular proofing on full face window and 4mm clear glass glazed to spec. (Inclusive of one coat steel primer paint and two coats of charcoal enamel based paint applied to all steel) | E167: No. | H167: =F167*G167 -> 0.00
A169: 4679 | B169: 11.8 | C169: PB 8.2.20 | D169: PAINTING
A171: 4680 | D171: All inclusive (1 x Base/Primer Coat, 2 Final Coat):
A173: 4681 | B173: 11.8.1 | D173: Plastered Walls - Dulux Weatherguard or similar approved. | E173: m² | F173: 47.0 | H173: =F173*G173 -> 0.00
A175: 4682 | B175: 11.8.2 | D175: Soffit of Concrete Roof - White Emulsion Paint | E175: m² | F175: 11.0 | H175: =F175*G175 -> 0.00
A177: 4683 | B177: 11.9 | D177: ROOFING
A179: 4684 | B179: 11.9.1 | C179: PB 8.2.11 | D179: a) SA Pine Wall Plate (114x38mm) installed as per drawing | E179: m | H179: =F179*G179 -> 0.00
A181: 4685 | B181: 11.9.2 | C181: PB 8.2.11 | D181: b) Timber trusses to roof including purlins, Engineer's certificate and cresote protection to exposed timber | E181: Sum | H181: =F181*G181 -> 0.00
A183: 4686 | B183: 11.9.3 | C183: PB 8.2.12 | D183: c) 0.6mm IBR Chromadeck Colomate Finished Galvanized sheeting - Colour as per Client's requirements | E183: m² | H183: =F183*G183 -> 0.00
A185: 4687 | B185: 11.9.4 | C185: PB 8.2.12 | D185: d) Ridge capping including closures to manufacturer's specification | E185: m | H185: =F185*G185 -> 0.00
A187: 4688 | B187: 11.9.5 | C187: PB 8.2.13 | D187: e) Fibreglass insulation blanket below roof sheeting | E187: m² | H187: =F187*G187 -> 0.00
A188: 4689 | B188: 11.9.6 | C188: PB 8.2.13 | D188: f) Fibre cement fascias boards (12mm thick) | E188: m | H188: =F188*G188 -> 0.00
A190: 4690 | B190: 11.9.7 | C190: PB 8.2.14 | D190: g) Gutters | E190: m | H190: =F190*G190 -> 0.00
A192: 4691 | B192: 11.9.8 | C192: PB 8.2.14 | D192: h) Rainwater Downpipes | E192: No. | H192: =F192*G192 -> 0.00
A194: 4692 | B194: 11.9.9 | D194: j) Coved Cornice 75mm | E194: m | H194: =F194*G194 -> 0.00
A196: 4693 | B196: 11.10 | C196: PB 8.2.23 | D196: FIRE PROTECTION & SAFETY
A198: 4694 | B198: 11.10.1 | D198: a) Danger Signs and Safety Notices. | E198: Sum | H198: =F198*G198 -> 0.00
A200: 4695 | B200: 11.10.2 | D200: b) Supply and install 7,5kg DCP Extinguisher complete with safety signage. | E200: No. | F200: 1.0 | H200: =F200*G200 -> 0.00
A202: 4696 | B202: 11.11 | D202: PLUMBING INSTALLATION
A204: 4697 | D204: Plumbing to include all hot and cold water supply, waste, vent and soil piping and fittings, taps, stopcocks, connections to externally supply and drainage etc. to provide a complete installation:
A206: 4698 | B206: 11.11.1 | D206: a) Handwash Basin | E206: No. | F206: 1.0 | H206: =F206*G206 -> 0.00
B207: Total Carried Forward | H207: =SUM(H163:H206) -> 0.00
B208: Total Brought Forward | H208: =H207 -> 0.00
A210: 4699 | B210: 11.11.2 | D210: b) WC and Cistern | E210: No. | F210: 1.0 | H210: =F210*G210 -> 0.00
A212: 4700 | B212: 11.11.3 | D212: c) Gulley and sewer piping, fittings and connection to sewer pipes. | E212: No. | F212: 1.0 | H212: =F212*G212 -> 0.00
A214: 4701 | B214: 11.12 | C214: PB 8.2.21 | D214: LIGHTING AND SMALL POWER
A216: 4702 | B216: 11.12.1 | D216: Complete electrical installation for Guard House | E216: Prov Sum | F216: 15,000.0 | H216: =F216*G216 -> 0.00
A218: 4703 | B218: 11.12.2 | D218: Contractor' Mark-Up on item 13.14.1 | E218: % | F218: 15,000.0 | H218: =F218*G218 -> 0.00
A220: 4704 | B220: 11.13 | C220: PB 8.2.22 | D220: MISCELLANEOUS
A222: 4705 | B222: 11.13.1 | D222: Built in Wooden counter | E222: Sum | H222: =F222*G222 -> 0.00
A224: 4706 | B224: 11.13.2 | D224: Chairs | E224: No. | F224: 2.0 | H224: =F224*G224 -> 0.00
B271: Total Carried Forward To Summary | H271: =SUM(H208:H270) -> 0.00

Sheet 12_ACCESS ROAD_PUMPSTATION
B2: CONTRACT NO:
B3: SCHEDULE 12: ACCESS ROAD
B4: Item No | C4: Payment | D4: Description | E4: Unit | F4: Qty | G4: Rate | H4: Amount (Rand)
A5: 1090 | B5: 12. | D5: SCHEDULE 12: ACCESS ROAD
A7: 5010 | B7: 12.1 | C7: SANS 1200 DM | D7: EARTHWORKS (ROADS, SUBGRADE)
A9: 5011 | C9: 8.3.3 | D9: Treatment of roadbed
A11: 5012 | D11: a) Road-bed preparation and compaction in layers of 150 mm
A13: 5013 | B13: 12.1.1 | D13: 1) of material to 90% Mod. AASHTO density | E13: m³ | F13: 50.0 | H13: =F13*G13 -> 0.00
A15: 5014 | D15: b) In-place treatment of road-bed in intermediate or hard material
A17: 5015 | B17: 12.1.2 | D17: 1) Ripping | E17: m³ | H17: =F17*G17 -> 0.00
A19: 5016 | C19: 8.3.4 | D19: Cut to fill (Within the free haul distance)
A21: 5017 | B21: 12.1.3 | D21: a) Compact to 90% of modified AASHTO maximum density | E21: m³ | H21: =F21*G21 -> 0.00
A23: 5018 | B23: 12.1.4 | D23: b) Rockfill, process and compact | E23: m³ | H23: =F23*G23 -> 0.00
A25: 5019 | C25: 8.3.4 | D25: Borrow to fill
A27: 5020 | B27: 12.1.5 | D27: a) Compact to 90% of modified AASHTO maximum density | E27: m³ | H27: =F27*G27 -> 0.00
A29: 5021 | B29: 12.1.6 | D29: b) Rockfill, process and compact | E29: m³ | H29: =F29*G29 -> 0.00
A31: 5022 | B31: 12.1.7 | C31: 8.3.5 | D31: Selected Layer compacted to 93% of modified AASHTO maximum density | E31: m³ | H31: =F31*G31 -> 0.00
A33: 5023 | C33: 8.3.6 | D33: Extra over Items 19.1.3 to 19.1.7 for excavating and breaking down material in:
A35: 5024 | B35: 12.1.8 | D35: a) Intermediate excavation | E35: m³ | H35: =F35*G35 -> 0.00
A37: 5025 | B37: 12.1.9 | D37: b) Hard excavation | E37: m³ | H37: =F37*G37 -> 0.00
A39: 5026 | C39: 8.3.7 | D39: Cut to spoil or stockpile from:
A41: 5027 | B41: 12.1.10 | D41: a) Soft excavation | E41: m³ | H41: =F41*G41 -> 0.00
A43: 5028 | B43: 12.1.11 | D43: b) Intermediate excavation (to be approved by the Engineer) | E43: m³ | H43: =F43*G43 -> 0.00
A45: 5029 | B45: 12.1.12 | D45: c) Hard excavation (blasting) | E45: m³ | H45: =F45*G45 -> 0.00
A47: 5030 | B47: 12.1.13 | C47: 8.3.11 | D47: Extra-over items 19.1.3 to 19.1.7 for temporary stockpiling of material | E47: m³ | H47: =F47*G47 -> 0.00
A49: 5031 | B49: 12.1.14 | C49: PSDM 8.3.17 | D49: Extra over Items 19.1.3 to 19.1.7 for obtaining material from commercial sources | E49: m³ | H49: =F49*G49 -> 0.00
A51: 5032 | B51: 12.2 | C51: SANS 1200 ME | D51: SUBBASE
A53: 5033 | B53: 12.2.1 | C53: 8.3.1 | D53: Construct 150 mm subbase course with a G6 type material from borrow pit and compact to 95% Mod AASHTO maximum density | E53: m³ | H53: =F53*G53 -> 0.00
A55: 5034 | B55: 12.2.2 | C55: 8.3.2 | D55: Construct 150 mm subbase course with a G6 type material from designated excavations and compact to 95% Mod AASHTO maximum density | E55: m³ | H55: =F55*G55 -> 0.00
B56: Total Carried Forward | H56: =SUM(H5:H55) -> R0.00
B57: Total Brought Forward | H57: =H56 -> R0.00
A59: 5035 | B59: 12.2.3 | C59: 8.3.3 | D59: Construct 150 mm subbase course with a G6 type material from commercial source and compact to 95% Mod AASHTO maximum density | E59: m³ | F59: 50 | H59: =F59*G59 -> 0
A61: 5036 | C61: 8.3.4 | D61: Extra over Item 19.2.1 to 19.2.3 for class of excavation
A63: 5037 | B63: 12.2.4 | D63: a) Intermediate excavation | E63: m³ | H63: =F63*G63 -> 0
A65: 5038 | B65: 12.2.5 | D65: b) Hard rock excavation | E65: m³ | H65: =F65*G65 -> 0.00
A67: 5039 | C67: 8.3.5 | D67: Process subbase material by the following processes, as relevant, and use in subbase
A69: 5040 | B69: 12.2.6 | D69: d) Stabilization | E69: m³ | F69: 50.0 | H69: =F69*G69 -> 0.00
A71: 5041 | C71: 8.3.8 | D71: Stabilizing agent
A73: 5042 | B73: 12.2.7 | D73: b) Portland cement | E73: t | F73: 3.5 | H73: =F73*G73 -> 0.00
A75: 5043 | B75: 12.2.8 | C75: 8.3.9 | D75: Overhaul (haul exceeding 2 km) | E75: m³.km | H75: =F75*G75 -> 0.00
A77: 5044 | B77: 12.3 | C77: SANS 1200 MF | D77: BASE
A79: 5045 | B79: 12.3.1 | C79: 8.3.1 | D79: Construct 150 mm base course with a G2 type material from borrow pit and compact to 98% Mod AASHTO maximum density | E79: m³ | H79: =F79*G79 -> 0.00
A81: 5046 | B81: 12.3.2 | C81: 8.3.3 | D81: Construct 150 mm base course with a G2 type material from commercial source and compact to 98% Mod AASHTO maximum density | E81: m³ | F81: =40+50 -> 90.0 | H81: =F81*G81 -> 0.00
A83: 5047 | B83: 12.3.3 | C83: 8.3.9 | D83: Overhaul (haul exceeding 2 km) | E83: m³.km | H83: =F83*G83 -> 0.00
A85: 5048 | B85: 12.4 | C85: SANS 1200 MJ | D85: SEGMENTED PAVING
A87: 5049 | C87: 8.2.1 | D87: Provision of edge restraints
A89: 5050 | B89: 12.4.1 | D89: Straight edging cast in situ with 25/19 MPa concrete (150mm x 100mm) | E89: m | F89: 84.0 | H89: =F89*G89 -> 0.00
A91: 5051 | B91: 12.4.2 | D91: Curved edging cast in situ with 25/19 MPa concrete (150mm x 100mm) | E91: m | F91: 12 | H91: =F91*G91 -> 0
A93: 5052 | B93: 12.4.3 | D93: Anchor edge beams cast in situ with 25/19 Mpa concrete (150mm x 250mm) | E93: m | H93: =F93*G93 -> 0.00
A95: 5053 | C95: 8.2.2 | D95: Construction of paving complete
A97: 5054 | B97: 12.4.4 | D97: Type S-A blocks, 80mm thick, herringbone, grey | E97: m² | F97: 325.0 | H97: =F97*G97 -> 0.00
A99: 5055 | B99: 12.5 | C99: SANS 1200 MK | D99: KERBING AND CHANNELLING
A101: 5056 | B101: 12.6 | C101: 8.2.1 | D101: CONCRETE KERBING
A103: 5057 | B103: 12.6.1 | D103: Fig. 8C type kerb, mountable, straight | E103: m | H103: =F103*G103 -> 0
A105: 5058 | B105: 12.6.2 | D105: Fig. 8C type kerb, mountable, curve | E105: m | H105: =F105*G105 -> 0.00
B109: Total Carried Forward | H109: =SUM(H57:H108) -> R0.00
B110: Total Brought Forward | H110: =H109 -> R0.00
A112: 5059 | B112: 12.7 | C112: SANS 1200 MH | D112: ASPHALT BASE AND SURFACING
A114: 5060 | C114: 8.5.1 | D114: Prime coat:
A116: 5061 | B116: 12.7.1 | D116: MC-30 cutback bitumen | E116: m² | H116: =F116*G116 -> 0
A118: 5062 | C118: 8.5.4 | D118: Asphalt
A120: 5063 | B120: 12.7.2 | D120: 150/200 penetration-grade bitumen, 40mm thick | E120: m² | H120: =F120*G120 -> 0
B175: Total Carried Forward To Summary | H175: =SUM(H110:H174) -> R0.00

Sheet 13_FENCING_PUMPSTATION
B2: CONTRACT NO:
B3: SCHEDULE 13 : FENCING
B4: Item No | C4: Payment | D4: Description | E4: Unit | F4: Qty | G4: Rate | H4: Amount (Rand)
A5: 1091 | B5: 13. | D5: SCHEDULE 13: FENCING
A7: 4241 | B7: 13.1 | C7: PA 8.2 | D7: SUPPLY AND ERECT NEW STEEL SEE THROUGH FENCE
B9: 13.1.2 | C9: PA 8.2.2 | D9: New 2.4m high Concrete Palisade fence complete as shown in the drawing NT06-22-1121-601-PS- 005 | E9: m | F9: 200.0 | H9: =F9*G9 -> 0.00
A11: 4247 | B11: 13.3 | C11: PA 8.4 | D11: SUPPLY AND ERECT NEW SECURITY GATE
A13: 4248 | B13: 13.3.1 | C13: PA 8.4.1 | D13: New 2.4m high, 4m wide steel palisade security gate (Double Leaf Type) complete as shown in the drawing NT06-22-1121-601-PS- 005 | E13: No. | F13: 1.0 | H13: =F13*G13 -> 0.00
B15: 13.3.2 | C15: PA 8.4.2 | D15: New 2.4m high, 4m wide steel palisade security gate (Sliding Type) complete as shown in the drawing NT06-22-1121-601-PS- 005 | E15: No.
B41: Total Carried Forward To Summary | H41: =SUM(H5:H40) -> R0.00

Sheet 14_MECHANICAL WORKS_PUMPSTATION
A2: CONTRACT NO:
A4: SCHEDULE 14 : MECHANICAL WORKS: INLET WORKS
A5: ITEM NO | B5: PAYMENT | C5: DESCRIPTION | D5: Unit | E5: QTY | F5: Rate | G5: Amount
B6: CLAUSE
A7: 14 | B7: PE01.20 | C7: DOCUMENTS AND DRAWINGS
C8: Preparation and submission of drawings and documents in accordance with relevant specification.
A10: 14.1 | C10: (1) Grit screw classifiers, including discharge pipework | D10: sum | E10: 1 | G10: =E10*F10 -> 0.00
A11: 14.2 | C11: (2) Pump station self-priming centrifugal pump 42.16 l/s, `3.5 mWC, 15kW and delivery pipe | D11: sum | E11: 1 | G11: =E11*F11 -> 0.00
A35: Total Carried Forward | G35: =SUM(G10:G34) -> R0.00
A36: Total Brought Forward | G36: =G35 -> R0.00
A37: 14.2 | B37: PE01.20 | C37: SUPPLY AND DELIVERY
C38: Supply and delivery to Site of plant, including storage, quality assurance, painting and insurance for:
A40: 14.2.1 | C40: (1) Manual trash screens with rake/hook | D40: sum | E40: 1 | G40: =E40*F40 -> 0.00
A41: 14.2.2 | C41: (2) Pump station self-priming centrifugal pump 42.16 l/s, 1150 rpm,13.5 m WC, 15 kW and delivery pipe | D41: No | E41: 2 | G41: =E41*F41 -> 0.00
C42: (3) Steel pipes SCH40
A43: 14.2.3 | C43: DN150 | D43: m | E43: 7 | G43: =E43*F43 -> 0.00 | I43: 0.5 | J43: =F43*I43 -> 0
A44: 14.2.4 | C44: DN300 | D44: m | E44: 4.2 | G44: =E44*F44 -> 0.00 | I44: 0.5 | J44: =F44*I44 -> 0
C45: (4) 90° Elbow
A46: 14.2.5 | C46: DN150 | D46: No | E46: 2 | G46: =E46*F46 -> 0.00 | I46: 0.5 | J46: =F46*I46 -> 0
A47: 14.2.6 | C47: DN300 | D47: No | E47: 3 | G47: =E47*F47 -> 0.00 | I47: 0.5 | J47: =F47*I47 -> 0
C48: (5) Reducer
A49: 14.2.7 | C49: DN150 to DN300 | D49: No | E49: 2 | G49: =E49*F49 -> 0.00 | I49: 0.5 | J49: =F49*I49 -> 0
C50: (13) Isolating and non return valves
A51: 14.2.8 | C51: Isolating Valves DN150 | D51: No | E51: 2 | G51: =E51*F51 -> 0.00
A52: 14.2.9 | C52: Isolating Valves DN200 | D52: No | E52: 3 | G52: =E52*F52 -> 0.00
A53: 14.2.10 | C53: Isolating Valves DN300 | D53: No | E53: 2 | G53: =E53*F53 -> 0.00
A54: 14.2.11 | C54: Non-return valve DN200 | D54: No | E54: 2 | G54: =E54*F54 -> 0.00
A55: 14.2.12 | C55: Non-return valve DN300 | D55: No | E55: 2 | G55: =E55*F55 -> 0.00
A68: Total Carried Forward | G68: =SUM(G36:G67) -> R0.00
A69: Total Brought Forward | G69: =G68 -> R0.00
A70: 14.3 | B70: PE01.20 | C70: ERECTION AND INSTALLATION
C71: Handling, including double handling if stored, erection, installation, quality assurance, painting including transportation and accommodation of personnel for:
A73: 14.3.1 | C73: (1) Manual trash screens with rake/hook | D73: sum | E73: 1 | G73: =E73*F73 -> 0.00
A74: 14.3.2 | C74: (2) Pump station self-priming centrifugal pump 42.16 l/s, 1150 rpm,13.5 m WC, 15 kW and delivery pipe | D74: No | E74: 2 | G74: =E74*F74 -> 0.00
C75: (3) Steel pipes SCH40
A76: 14.3.3 | C76: DN150 | D76: m | E76: 7 | G76: =E76*F76 -> 0.00
A77: 14.3.4 | C77: DN300 | D77: m | E77: 4.2 | G77: =E77*F77 -> 0.00
C78: (4) 90° Elbow
A79: 14.3.5 | C79: DN150 | D79: No | E79: 2 | G79: =E79*F79 -> 0.00
A80: 14.3.6 | C80: DN300 | D80: No | E80: 3 | G80: =E80*F80 -> 0.00
C81: (5) Reducer
A82: 14.3.7 | C82: DN150 to DN300 | D82: No | E82: 2 | G82: =E82*F82 -> 0.00
C83: (13) Isolating and non return valves
A84: 14.3.8 | C84: Isolating Valves DN150 | D84: No | E84: 2 | G84: =E84*F84 -> 0.00
A85: 14.3.9 | C85: Isolating Valves DN200 | D85: No | E85: 1 | G85: =E85*F85 -> 0.00
A86: 14.3.10 | C86: Isolating Valves DN300 | D86: No | E86: 4 | G86: =E86*F86 -> 0.00
A87: 14.3.11 | C87: Non-return valve DN200 | D87: No | E87: 1 | G87: =E87*F87 -> 0.00
A88: 14.3.12 | C88: Non-return valve DN300 | D88: No | E88: 3 | G88: =E88*F88 -> 0.00
A101: Total Carried Forward | G101: =SUM(G69:G100) -> R0.00
A102: Total Brought Forward | G102: =G101 -> R0.00
A103: 14.4 | B103: PE01.20 | C103: TESTING AND COMMISSIONING
C104: Testing and commissioning including all chemicals, materials, equipment, plant and personnel for:
A106: 14.4.1 | C106: (1) Manual trash screens with rake/hook | D106: sum | E106: 1 | G106: =E106*F106 -> 0.00
A107: 14.4.2 | C107: (2) Pump station self-priming centrifugal pump 42.16 l/s, 1150 rpm,13.5 m WC, 15 kW and delivery pipe | D107: No | E107: 2 | G107: =E107*F107 -> 0.00
C108: (3) Steel pipes SCH40
A109: 14.4.3 | C109: DN150 | D109: m | E109: 7 | G109: =E109*F109 -> 0.00
A110: 14.4.4 | C110: DN300 | D110: m | E110: 4.2 | G110: =E110*F110 -> 0.00
C111: (4) 90° Elbow
A112: 14.4.5 | C112: DN150 | D112: No | E112: 2 | G112: =E112*F112 -> 0.00
A113: 14.4.6 | C113: DN300 | D113: No | E113: 3 | G113: =E113*F113 -> 0.00
C114: (5) Reducer
A115: 14.4.7 | C115: DN150 to DN300 | D115: No | E115: 2 | G115: =E115*F115 -> 0.00
C116: (13) Isolating and non return valves
A117: 14.4.8 | C117: Isolating Valves DN150 | D117: No | E117: 2 | G117: =E117*F117 -> 0.00
A118: 14.4.9 | C118: Isolating Valves DN200 | D118: No | E118: 3 | G118: =E118*F118 -> 0.00
A119: 14.4.10 | C119: Isolating Valves DN300 | D119: No | E119: 2 | G119: =E119*F119 -> 0.00
A120: 14.4.11 | C120: Non-return valve DN200 | D120: No | E120: 2 | G120: =E120*F120 -> 0.00
A121: 14.4.12 | C121: Non-return valve DN300 | D121: No | E121: 2 | G121: =E121*F121 -> 0.00
A135: Total Carried Forward | G135: =SUM(G102:G134) -> R0.00
A136: Total Brought Forward | G136: =G135 -> R0.00
A137: 14.5 | B137: PE01.20 | C137: SERVICING
C138: The Contractor will be fully responsible for maintenance and servicing of equipment during the Defects Liability Period:
C140: Service, maintenance and inspection visits, as dictated by equipment requirements, (including all transport, materials, training, consumables, equipment, tools etc.) | D140: no
A142: 14.5.1 | C142: Return visits to Site, if and when ordered by the
C143: Engineer (Provisional, rate only) | D143: no | E143: rate only
A145: 14.6 | B145: PE01.20 | C145: SPECIAL TOOLS
C146: Supply and delivery to site of special tools/equipment required for routine operation and maintenance
A148: 14.6.1 | C148: (i) …………………………………………………………. | D148: sum | E148: 1
A149: 14.6.2 | C149: (ii) …………………………………………………………. | D149: sum | E149: 1
A150: 14.6.3 | C150: (iii) ………………………………………………………… | D150: sum | E150: 1
A151: 14.6.4 | C151: (iv) ………………………………………………………… | D151: sum | E151: 1
A153: 14.7 | B153: PE01.20 | C153: STORAGE AND INSURANCE
C155: Provision and maintenance of off-site roofed storage when ordered by the Engineer, including insurance while stored (Provisional) | D155: day.m2 | E155: rate only
A158: 14.7.1 | C158: Allow for 5% Spares on section total value (Provisional sum, under strict control of Engineer) | D158: sum | E158: 1 | G158: =F158*E158 -> 0.00
A172: Total Carried Forward To Summary | G172: =SUM(G136:G171) -> R0.00

Sheet 15_ELECTRICAL_WORKS
A2: CONTRACT NO:
A3: SCHEDULE 15 : ELECTRICAL WORKS
A4: ITEM NO | B4: PAYMENT REFERENCE | C4: LI | D4: DESCRIPTION | E4: UNIT | F4: QTY | G4: RATE | H4: AMOUNT
A8: 15 | D8: SCHEDULE 15: ELECTRICAL & INSTRUMENTATION WORKS (PRELIMINARY & GENERAL)
A10: 15.1 | D10: SCHEDULED FIXED-CHARGE AND VALUE RELATED ITEMS
D11: ``
D12: Allow for all incidental costs uniquely attached to the execution of the electrical works but not measured separately:
A14: 15.1.1 | D14: Mobilization | E14: Lot | F14: 1
A16: 15.1.2 | D16: Demobilization | E16: Lot | F16: 1
A18: 15.1.3 | D18: Insurance Workman's Compensation | E18: Lot | F18: 1
A20: 1.1.4 | D20: Site Establishment | E20: Lot | F20: 1
A22: 15.1.5 | D22: Safety ( Induction) & Safety Requirements | E22: Lot | F22: 1
A24: 15.1.6 | D24: Personnel Protection Equipment | E24: Lot | F24: 1
A26: 15.1.7 | D26: Management | E26: Lot | F26: 1
A28: 15.1.8 | D28: Site De-Establishment
A30: 15.1.9 | D30: Tools & Consumables | E30: Lot | F30: 1
A32: 15.1.10 | D32: Travelling Management / Meetings & Time. | E32: Lot | F32: 1
A34: 15.1.11 | D34: Design And Drawings | E34: Lot | F34: 1
A36: 15.1.12 | D36: Value-adjustable Items | E36: Item | F36: 1
A38: 15.1.13 | D38: Time-adjustable Items | E38: Wks | F38: 78
A46: Total Carried Forward | H46: =SUM(H14:H38) -> R0.00
A47: Total Brought Forward | H47: =H46 -> R0.00
D48: SCHEDULE 15: ELECTRICAL & INSTRUMENTATION WORKS
A50: 15.2 | D50: Bulk Electrical
D51: 6-way fibreglass metering kiosk
A52: 15.2.1 | D52: Supply | E52: Each | F52: 1 | H52: =G52*F52 -> R 0.00
A53: 15.2.2 | D53: Install | E53: Each | F53: 1 | H53: =G53*F53 -> R 0.00
D55: Emergency back-up generator
A56: 15.2.3 | D56: Supply | E56: Each | F56: 1 | H56: =G56*F56 -> R 0.00
A57: 15.2.4 | D57: Install | E57: Each | F57: 1 | H57: =G57*F57 -> R 0.00
D59: 3-phase check meter complete with associated CTs
A60: 15.2.5 | D60: Supply | E60: Each | F60: 1 | H60: =G60*F60 -> R 0.00
A61: 15.2.6 | D61: Install | E61: Each | F61: 1 | H61: R 0.00
A62: 15.3 | D62: Lighting
D63: Type A: Surface mounted Vapourproof light fitting 26W LED
A64: 15.3.1 | D64: Supply | E64: Each | F64: 8 | H64: =G64*F64 -> R 0.00
A65: 15.3.2 | D65: Install | E65: Each | F65: 8 | H65: R 0.00
D67: TypeB: Post top luminaire
A68: 15.3.3 | D68: Supply | E68: Each | F68: 9 | H68: =G68*F68 -> R 0.00
A69: 15.3.4 | D69: Install | E69: Each | F69: 9 | H69: R 0.00
D70: Wall mounted 1-lever light switch complete with 4x2 galanized box
A71: 15.3.5 | D71: Supply | E71: Each | F71: 2 | H71: R 0.00
A72: 15.3.6 | D72: Install | E72: Each | F72: 2 | H72: R 0.00
D73: Photocell
A74: 15.3.7 | D74: Supply | E74: Each | F74: 1 | H74: R 0.00
A75: 15.3.8 | D75: Install | E75: Each | F75: 1 | H75: R 0.00
D76: 6m Galvanized pole with termination access & din rail
A77: 15.3.9 | D77: Supply | E77: Each | F77: 9 | H77: R 0.00
A78: 15.3.10 | D78: Install | E78: Each | F78: 9 | H78: R 0.00
A79: 15.4 | D79: Small Power
D80: 16A double switched socket outlet
A81: 15.4.1 | D81: Supply | E81: Each | F81: 1 | H81: R 0.00
A82: 15.4.2 | D82: Install | E82: Each | F82: 1 | H82: R 0.00
D83: 32A 3-ph IP66 weather proof isolator
A84: 15.4.3 | D84: Supply | E84: Each | F84: 2 | H84: =G84*F84 -> R 0.00
A85: 15.4.4 | D85: Install | E85: Each | F85: 2 | H85: =G85*F85 -> R 0.00
A87: 15.5 | D87: Reticulation
D88: Cables
D89: 25mm² x4C Cu PVC/PVC/SWA/PVC cable
A90: 15.5.1 | D90: Supply | E90: m | F90: 250 | H90: =G90*F90 -> R 0.00
A91: 15.5.2 | D91: Install | E91: m | F91: 250 | H91: =G91*F91 -> R 0.00
D92: 16mm² x4C Cu PVC/PVC/SWA/PVC cable
A93: 15.5.3 | D93: Supply | E93: m | F93: 50 | H93: =G93*F93 -> R 0.00
A94: 15.5.4 | D94: Install | E94: m | F94: 50 | H94: =G94*F94 -> R 0.00
D95: 10mm² x4C Cu PVC/PVC/SWA/PVC cable
A96: 15.5.5 | D96: Supply | E96: m | F96: 50 | H96: =G96*F96 -> R 0.00
A97: 15.5.6 | D97: Install | E97: m | F97: 50 | H97: R 0.00
D98: 6mm² x4C Cu PVC/PVC/SWA/PVC cable
A99: 15.5.7 | D99: Supply | E99: m | F99: 280 | H99: =G99*F99 -> R 0.00
A100: 15.5.8 | D100: Install | E100: m | F100: 280 | H100: R 0.00
A101: 15.6 | D101: Bare Copper Earth Wire (BCEW)
D103: 16mm²
A104: 15.6.1 | D104: Supply | E104: m | F104: 250 | H104: =G104*F104 -> R 0.00
A105: 15.6.2 | D105: Install | E105: m | F105: 250 | H105: R 0.00
D106: 10mm²
A107: 15.6.3 | D107: Supply | E107: m | F107: 50 | H107: R 0.00
A108: 15.6.4 | D108: Install | E108: m | F108: 50 | H108: R 0.00
D109: 6mm²
A110: 15.6.5 | D110: Supply | E110: m | F110: 50 | H110: R 0.00
A111: 15.6.6 | D111: Install | E111: m | F111: 50 | H111: R 0.00
A112: Total Carried Forward | H112: =SUM(H47:H111) -> R 0.00
A113: Total Brought Forward | H113: =H112 -> R 0.00
D114: 4mm²
A115: 15.6.7 | D115: Supply | E115: m | F115: 280 | H115: R 0.00
A116: 15.6.8 | D116: Install | E116: m | F116: 280 | H116: R 0.00
A117: 15.7 | D117: Terminations
A118: 15.7.1 | D118: 25mm² x4C Cu PVC/PVC/SWA/PVC cable | E118: Each | F118: 2 | H118: R 0.00
A119: 15.7.2 | D119: 16mm² x4C Cu PVC/PVC/SWA/PVC cable | E119: Each | F119: 4 | H119: R 0.00
A120: 15.7.3 | D120: 10mm² x4C Cu PVC/PVC/SWA/PVC cable | E120: Each | F120: 6 | H120: R 0.00
A121: 15.7.4 | D121: 6mm² x4C Cu PVC/PVC/SWA/PVC cable | E121: Each | F121: 10 | H121: R 0.00
A123: 15.8 | D123: Distribution boards
D124: DB-A
A125: 15.8.1 | D125: Supply | E125: Each | F125: 1 | H125: =G125*F125 -> R 0.00
A126: 15.8.2 | D126: Install | E126: Each | F126: 1 | H126: R 0.00
D127: Junction Box B (Inlet Works)
A128: 15.8.3 | D128: Supply | E128: Each | F128: 1 | H128: =G128*F128 -> R 0.00
A129: 15.8.4 | D129: Install | E129: Each | F129: 1 | H129: R 0.00
D130: Control Panel complete with VSD motor starting devices
A131: 15.8.5 | D131: Supply | E131: Each | F131: 1 | H131: =G131*F131 -> R 0.00
A132: 15.8.6 | D132: Install | E132: Each | F132: 1 | H132: R 0.00
A133: 15.9 | D133: Wireways
D134: 20mm PVC conduit
A135: 15.9.1 | D135: Supply | E135: m | F135: 150 | H135: =G135*F135 -> R 0.00
A136: 15.9.2 | D136: Install | E136: m | F136: 150 | H136: R 0.00
A137: 15.10 | D137: Lightning Protection & Earthing
D138: Lightning Protection & Earthing Installation
A139: 15.10.1 | D139: Supply | E139: Each | F139: 1 | H139: =G139*F139 -> R 0.00
A140: 15.10.2 | D140: Install | E140: Each | F140: 1 | H140: R 0.00
D142: Bonding of DBs and outdoor equipment to earth | E142: Sum | F142: 1 | H142: R 0.00
A144: 15.11 | D144: Excavations
A145: 15.11.1 | D145: Soft | E145: m³ | F145: 55 | H145: =G145*F145 -> R 0.00
A146: 15.11.2 | D146: Intermediate | E146: m³ | F146: 10 | H146: R 0.00
A147: 15.11.3 | D147: Hard rock | E147: m³ | F147: 5 | H147: R 0.00
D148: 110mm dia uPVC sleevs
A149: 15.11.4 | D149: Supply | E149: m | F149: 80 | H149: R 0.00
A150: 15.11.5 | D150: Install | E150: m | F150: 80 | H150: R 0.00
A152: 15.11.6 | D152: Concrete bund wall complete with drain valve | E152: Each | F152: 1 | H152: R 0.00
A154: 15.12 | D154: Testing & Commissioning
A155: 15.12.1 | D155: LV Installation | E155: Sum | F155: 1 | H155: =G155*F155 -> R 0.00
A156: 15.12.2 | D156: 20kVA Generator | E156: Sum | F156: 1 | H156: R 0.00
A158: 15.13 | D158: Provisional Sums
A159: 15.13.1 | D159: Local Authority - Connection Fees 40kVA | E159: Sum | F159: 1 | H159: =G159*F159 -> R 0.00
A160: 15.13.2 | D160: Contingency Amount | E160: Sum | F160: 1 | H160: R 0.00
A171: Total Carried Forward To Summary | H171: =SUM(H113:H170) -> R 0.00
